{"text_format":"1","workbook":"xlsx","n_sheets":6,"sheets":["National & Regional Team","Provider - All","Provider - Site","Provider - By Type","Commissioner","Notes"],"not_rendered":{"charts":0,"images":0,"macros":1,"external_links":2,"defined_names":36,"comments":0,"pivot_tables":0},"unopened":[],"bounds":{"document_bytes":16777216,"sheet_cells":100000,"rows_first":2000,"rows_last":500,"rows_between":2000,"halvings":0,"cell_chars":16384,"cell_head_chars":4096},"cells_cut":0,"cells_raw":0,"read":"whole","date_system":"1900"}

{"sheet":"National & Regional Team","index":0,"n_rows":31,"n_cols":6,"rows_kept":31,"cut":false,"hidden":false,"merged":[[30,1,30,5],[28,1,28,5],[35,1,37,5],[27,1,27,5]]}
[]
[null,"Title:","Mixed-Sex Accommodation"]
[null,"Summary:","The total occurrences of unjustified mixing in relation to sleeping accommodation."]
[]
[null,"Period:","May 2022"]
[null,"Sources:","MSA, collected via SDCS, NHS England and NHS Improvement (MSA breaches)"]
[null,null,"Hospital Episode Statistics (HES), NHS Digital (FCE data)"]
[null,"Basis:","Provider"]
[null,"Published:","14th July 2022"]
[null,"Revised:","-"]
[null,"Status:","Published"]
[null,"Contact:","Katie Tither - england.nhsdata@nhs.net"]
[]
[null,"National & Regional Level Data"]
[null,"Region Code","Region Name","MSA Breaches","Finished Consultant Episodes¹‚²\n(from May-21)","Breach Rate2"]
[null,"-","England",2344,1655367,{"$f":"ROUND(D16/E16*1000,1)","v":1.4}]
[]
[null,"Y56","London Commissioning Region",479,229275,{"$f":"ROUND((D18/E18)*1000,1)","v":2.1}]
[null,"Y58","South West Commissioning Region",267,170290,{"$f":"ROUND((D19/E19)*1000,1)","v":1.6}]
[null,"Y59","South East Commissioning Region",659,248285,2.7]
[null,"Y60","Midlands Commissioning Region",266,316315,0.8]
[null,"Y61","East of England Commissioning Region",127,191945,0.7]
[null,"Y62","North West Commissioning Region",228,227305,1]
[null,"Y63","North East and Yorkshire Commissioning Region",313,261940,1.2]
[null,"X24","NHS England",5,"N/A","N/A"]
[]
[null,"Notes:"]
[null,"1. Finished Consultant Episode (FCE) data from Hospital Episode Statistics (HES) are used to calculate the MSA breach rate (for further details on methodology of this calculation see footnote 2). The FCE data presented are a snapshot of latest HES data available at the time of the MSA publication for the relevant data period (due to timings of HES publication in some months this will represent \"final\" HES data, however for some months this is \"provisional\" HES data). These are used solely for the purposes of calculating an MSA breach rate to allow comparisons across providers and of change over time.\n\nFrom 2017/18 onwards, where revisions are published, the FCE denominator is updated to reflect final HES data where available so is subject to change. The FCE data may not match the published HES timeseries (where provisional data is updated on a monthly basis).  The official and most recent timeseries of HES data is available on the NHS Digital website which will reflect any more recent updates to the provisional HES FCE data. https://digital.nhs.uk/data-and-information/publications/statistical/hospital-episode-statistics-for-admitted-patient-care-outpatient-and-accident-and-emergency-data\n\nRegional level FCE data is displayed accordance with HES disclosure control methodology. \nhttps://digital.nhs.uk/binaries/content/assets/website-assets/data-and-information/data-tools-and-services/data-services/hospital-episode-statistics/hes_analysis_guide_september_2018-v1.1.pdf"]
[null,"HES Disclosure Control\nIn order to protect patient confidentiality '*' appears in the table above for all sub-national breakdowns, where it is possible to calculate a value between 1 and 7 from the data presented. All other sub-national data has been rounded to the nearest 5.\n\nIf the national total is between 1 and 7 (inclusive), no sub-national breakdown will be displayed. \n\nIf the national total is greater than or equal to 8;\na. Sub-national counts between 1 and 7 (inclusive) will be displayed as ’*’.\nb. Zeroes will be unchanged.\nc. All other counts will be rounded to the nearest 5."]
[]
[null,"2. The MSA breach rate is the number of MSA breaches, per 1,000 finished consultant episodes. Due to timeliness of HES data, there is a one year lag in the denominator data, compared to the MSA breaches. For example, the breach rate for April 2022 is calculated by dividing the total MSA breaches in April 2022 (numerator) by the number of Finished Consultant Episodes in April 2021 (denominator). As such, it is only an estimation. Please see Breach Rate methodology paper for further information via: http://www.england.nhs.uk/statistics/mixed-sex-accommodation/\n\nWhen calculating rates or percentages at regional level using HES data;\n   1) Where the numerator or denominator is between 1 and 7 (inclusive), no percentage or rate is calculated, and a ’*’ will be displayed.\n   2) Where the numerator is zero, the percentage will be 0%.\n   3) Where the unrounded numerator and denominator are greater than or equal to 8, a percentage or rate is calculated using the rounded numerator or denominator.\n   4).Where no denominator data is available, no percentage or rate is calculated, and ’N/A’ will be displayed."]

{"sheet":"Provider - All","index":1,"n_rows":238,"n_cols":8,"rows_kept":238,"cut":false,"hidden":false,"merged":[[233,1,233,7],[237,1,237,7],[234,1,234,7],[236,1,236,7]]}
[]
[null,"Title:","Mixed-Sex Accommodation"]
[null,"Summary:","The total occurrences of unjustified mixing in relation to sleeping accommodation."]
[]
[null,"Period:",{"$f":"Publicationmonth","v":"May 2022"}]
[null,"Sources:",{"$f":"'National & Regional Team'!C6","v":"MSA, collected via SDCS, NHS England and NHS Improvement (MSA breaches)"}]
[null,null,{"$f":"'National & Regional Team'!C7","v":"Hospital Episode Statistics (HES), NHS Digital (FCE data)"}]
[null,"Basis:","Provider"]
[null,"Published:",{"$f":"Publicationdate","v":"14th July 2022"}]
[null,"Revised:","-"]
[null,"Status:","Published"]
[null,"Contact:","Katie Tither - england.nhsdata@nhs.net"]
[]
[null,"Provider Level Data"]
[null,"Region Code","Region Name","Organisation Code","Organisation Name","MSA Breaches",{"$f":"'National & Regional Team'!E15","v":"Finished Consultant Episodes¹‚²\n(from May-21)"},"Breach Rate2,3"]
[null,"-","-","-","England",2344,1655367,1.4]
[]
[null,"Y56","London Commissioning Region","RF4","Barking, Havering and Redbridge University Hospitals NHS Trust",158,12715,12.4]
[null,"Y56","London Commissioning Region","RRP","Barnet, Enfield and Haringey Mental Health NHS Trust",0,"-","N/A"]
[null,"Y56","London Commissioning Region","R1H","Barts Health NHS Trust",15,25230,0.6]
[null,"Y56","London Commissioning Region","TAF","Camden and Islington NHS Foundation Trust",0,"-","N/A"]
[null,"Y56","London Commissioning Region","RV3","Central and North West London NHS Foundation Trust",0,360,0]
[null,"Y56","London Commissioning Region","RYX","Central London Community Healthcare NHS Trust",0,"-","N/A"]
[null,"Y56","London Commissioning Region","RQM","Chelsea and Westminster Hospital NHS Foundation Trust",19,13905,1.4]
[null,"Y56","London Commissioning Region","NV3","Circle",0,710,0]
[null,"Y56","London Commissioning Region","RJ6","Croydon Health Services NHS Trust",23,6495,3.5]
[null,"Y56","London Commissioning Region","RWK","East London NHS Foundation Trust",0,745,0]
[null,"Y56","London Commissioning Region","RVR","Epsom and St Helier University Hospitals NHS Trust",30,7940,3.8]
[null,"Y56","London Commissioning Region","RP4","Great Ormond Street Hospital For Children NHS Foundation Trust",0,3700,0]
[null,"Y56","London Commissioning Region","RJ1","Guy's and St Thomas' NHS Foundation Trust",19,17360,1.1000000000000001]
[null,"Y56","London Commissioning Region","RQX","Homerton Healthcare NHS Foundation Trust",39,6345,6.1]
[null,"Y56","London Commissioning Region","RY9","Hounslow and Richmond Community Healthcare NHS Trust",0,25,0]
[null,"Y56","London Commissioning Region","RYJ","Imperial College Healthcare NHS Trust",130,19050,6.8]
[null,"Y56","London Commissioning Region","RJZ","King's College Hospital NHS Foundation Trust",11,21505,0.5]
[null,"Y56","London Commissioning Region","RAX","Kingston Hospital NHS Foundation Trust",0,8255,0]
[null,"Y56","London Commissioning Region","RJ2","Lewisham and Greenwich NHS Trust",12,14905,0.8]
[null,"Y56","London Commissioning Region","R1K","London North West University Healthcare NHS Trust",30,18895,1.6]
[null,"Y56","London Commissioning Region","RAT","North East London NHS Foundation Trust",0,740,0]
[null,"Y56","London Commissioning Region","RAP","North Middlesex University Hospital NHS Trust",0,7195,0]
[null,"Y56","London Commissioning Region","RPG","Oxleas NHS Foundation Trust",0,140,0]
[null,"Y56","London Commissioning Region","RAL","Royal Free London NHS Foundation Trust",26,17425,1.5]
[null,"Y56","London Commissioning Region","RAN","Royal National Orthopaedic Hospital NHS Trust",3,1250,2.4]
[null,"Y56","London Commissioning Region","RV5","South London and Maudsley NHS Foundation Trust",2,"-","N/A"]
[null,"Y56","London Commissioning Region","RQY","South West London and St George's Mental Health NHS Trust",0,245,0]
[null,"Y56","London Commissioning Region","NT3","Spire Healthcare",0,4895,0]
[null,"Y56","London Commissioning Region","RJ7","St George's University Hospitals NHS Foundation Trust",0,13110,0]
[null,"Y56","London Commissioning Region","RAS","The Hillingdon Hospitals NHS Foundation Trust",0,4975,0]
[null,"Y56","London Commissioning Region","RPY","The Royal Marsden NHS Foundation Trust",0,5915,0]
[null,"Y56","London Commissioning Region","RRV","University College London Hospitals NHS Foundation Trust",0,14485,0]
[null,"Y56","London Commissioning Region","RKL","West London NHS Trust",11,"-","N/A"]
[null,"Y56","London Commissioning Region","RKE","Whittington Health NHS Trust",5,4820,1]
[null,"Y58","South West Commissioning Region","RVN","Avon and Wiltshire Mental Health Partnership NHS Trust",0,205,0]
[null,"Y58","South West Commissioning Region","RJ8","Cornwall Partnership NHS Foundation Trust",0,565,0]
[null,"Y58","South West Commissioning Region","RWV","Devon Partnership NHS Trust",0,"-","N/A"]
[null,"Y58","South West Commissioning Region","RBD","Dorset County Hospital NHS Foundation Trust",85,5355,15.9]
[null,"Y58","South West Commissioning Region","RDY","Dorset Healthcare University NHS Foundation Trust",0,375,0]
[null,"Y58","South West Commissioning Region","RTQ","Gloucestershire Health and Care NHS Foundation Trust",0,250,0]
[null,"Y58","South West Commissioning Region","RTE","Gloucestershire Hospitals NHS Foundation Trust",24,17100,1.4]
[null,"Y58","South West Commissioning Region","RN3","Great Western Hospitals NHS Foundation Trust",0,9005,0]
[null,"Y58","South West Commissioning Region","NR5","Livewell Southwest",0,205,0]
[null,"Y58","South West Commissioning Region","RVJ","North Bristol NHS Trust",0,13925,0]
[null,"Y58","South West Commissioning Region","REF","Royal Cornwall Hospitals NHS Trust",0,14525,0]
[null,"Y58","South West Commissioning Region","RH8","Royal Devon University Healthcare NHS Foundation Trust",0,19275,0]
[null,"Y58","South West Commissioning Region","RD1","Royal United Hospitals Bath NHS Foundation Trust",8,10165,0.8]
[null,"Y58","South West Commissioning Region","RNZ","Salisbury NHS Foundation Trust",98,5410,18.100000000000001]
[null,"Y58","South West Commissioning Region","NLX","Sirona Care & Health",0,"-","N/A"]
[null,"Y58","South West Commissioning Region","RH5","Somerset NHS Foundation Trust",0,9860,0]
[null,"Y58","South West Commissioning Region","RA9","Torbay and South Devon NHS Foundation Trust",0,8365,0]
[null,"Y58","South West Commissioning Region","RA7","University Hospitals Bristol and Weston NHS Foundation Trust",0,16080,0]
[null,"Y58","South West Commissioning Region","R0D","University Hospitals Dorset NHS Foundation Trust",48,17695,2.7]
[null,"Y58","South West Commissioning Region","RK9","University Hospitals Plymouth NHS Trust",0,13720,0]
[null,"Y58","South West Commissioning Region","AXG","Wiltshire Health & Care",0,60,0]
[null,"Y58","South West Commissioning Region","RA4","Yeovil District Hospital NHS Foundation Trust",0,4750,0]
[null,"Y59","South East Commissioning Region","RTK","Ashford and St Peter's Hospitals NHS Foundation Trust",27,7260,3.7]
[null,"Y59","South East Commissioning Region","RWX","Berkshire Healthcare NHS Foundation Trust",0,265,0]
[null,"Y59","South East Commissioning Region","RXQ","Buckinghamshire Healthcare NHS Trust",0,9515,0]
[null,"Y59","South East Commissioning Region","NTV","CSH Surrey",0,60,0]
[null,"Y59","South East Commissioning Region","RN7","Dartford and Gravesham NHS Trust",37,8815,4.2]
[null,"Y59","South East Commissioning Region","RVV","East Kent Hospitals University NHS Foundation Trust",54,17830,3]
[null,"Y59","South East Commissioning Region","RXC","East Sussex Healthcare NHS Trust",33,11670,2.8]
[null,"Y59","South East Commissioning Region","NVM","Epsomedical Group",0,435,0]
[null,"Y59","South East Commissioning Region","RDU","Frimley Health NHS Foundation Trust",21,17900,1.2]
[null,"Y59","South East Commissioning Region","RN5","Hampshire Hospitals NHS Foundation Trust",1,12570,0.1]
[null,"Y59","South East Commissioning Region","R1F","Isle of Wight NHS Trust",0,3920,0]
[null,"Y59","South East Commissioning Region","RXY","Kent and Medway NHS and Social Care Partnership Trust",0,"-","N/A"]
[null,"Y59","South East Commissioning Region","RYY","Kent Community Health NHS Foundation Trust",0,220,0]
[null,"Y59","South East Commissioning Region","ADP","Kims Hospital",0,180,0]
[null,"Y59","South East Commissioning Region","RWF","Maidstone and Tunbridge Wells NHS Trust",0,12590,0]
[null,"Y59","South East Commissioning Region","RPA","Medway NHS Foundation Trust",92,8285,11.1]
[null,"Y59","South East Commissioning Region","NT2","Nuffield Health",0,1395,0]
[null,"Y59","South East Commissioning Region","RNU","Oxford Health NHS Foundation Trust",0,265,0]
[null,"Y59","South East Commissioning Region","RTH","Oxford University Hospitals NHS Foundation Trust",53,19845,2.7]
[null,"Y59","South East Commissioning Region","RHU","Portsmouth Hospitals University National Health Service Trust",0,16210,0]
[null,"Y59","South East Commissioning Region","NTP","Practice Plus Group",0,4995,0]
[null,"Y59","South East Commissioning Region","RPC","Queen Victoria Hospital NHS Foundation Trust",0,1750,0]
[null,"Y59","South East Commissioning Region","RHW","Royal Berkshire NHS Foundation Trust",53,13350,4]
[null,"Y59","South East Commissioning Region","RA2","Royal Surrey County Hospital NHS Foundation Trust",0,8290,0]
[null,"Y59","South East Commissioning Region","R1C","Solent NHS Trust",0,80,0]
[null,"Y59","South East Commissioning Region","RW1","Southern Health NHS Foundation Trust",0,810,0]
[null,"Y59","South East Commissioning Region","RXX","Surrey and Borders Partnership NHS Foundation Trust",0,150,0]
[null,"Y59","South East Commissioning Region","RTP","Surrey and Sussex Healthcare NHS Trust",0,13105,0]
[null,"Y59","South East Commissioning Region","RDR","Sussex Community NHS Foundation Trust",0,405,0]
[null,"Y59","South East Commissioning Region","RX2","Sussex Partnership NHS Foundation Trust",0,245,0]
[null,"Y59","South East Commissioning Region","RHM","University Hospital Southampton NHS Foundation Trust",67,16935,4]
[null,"Y59","South East Commissioning Region","RYR","University Hospitals Sussex NHS Foundation Trust",225,28195,8]
[null,"Y60","Midlands Commissioning Region","RXT","Birmingham and Solihull Mental Health NHS Foundation Trust",0,"-","N/A"]
[null,"Y60","Midlands Commissioning Region","RYW","Birmingham Community Healthcare NHS Foundation Trust",0,525,0]
[null,"Y60","Midlands Commissioning Region","RQ3","Birmingham Women's and Children's NHS Foundation Trust",0,5280,0]
[null,"Y60","Midlands Commissioning Region","TAJ","Black Country Healthcare NHS Foundation Trust",0,"-","N/A"]
[null,"Y60","Midlands Commissioning Region","RFS","Chesterfield Royal Hospital NHS Foundation Trust",0,7750,0]
[null,"Y60","Midlands Commissioning Region","RYG","Coventry and Warwickshire Partnership NHS Trust",0,"-","N/A"]
[null,"Y60","Midlands Commissioning Region","RY8","Derbyshire Community Health Services NHS Foundation Trust",0,235,0]
[null,"Y60","Midlands Commissioning Region","RXM","Derbyshire Healthcare NHS Foundation Trust",0,145,0]
[null,"Y60","Midlands Commissioning Region","RLT","George Eliot Hospital NHS Trust",0,4090,0]
[null,"Y60","Midlands Commissioning Region","R1A","Herefordshire and Worcestershire Health and Care NHS Trust",0,600,0]
[null,"Y60","Midlands Commissioning Region","RNQ","Kettering General Hospital NHS Foundation Trust",0,8970,0]
[null,"Y60","Midlands Commissioning Region","RT5","Leicestershire Partnership NHS Trust",0,570,0]
[null,"Y60","Midlands Commissioning Region","RY5","Lincolnshire Community Health Services NHS Trust",0,70,0]
[null,"Y60","Midlands Commissioning Region","RP7","Lincolnshire Partnership NHS Foundation Trust",0,"-","N/A"]
[null,"Y60","Midlands Commissioning Region","RRE","Midlands Partnership NHS Foundation Trust",0,520,0]
[null,"Y60","Midlands Commissioning Region","RLY","North Staffordshire Combined Healthcare NHS Trust",0,200,0]
[null,"Y60","Midlands Commissioning Region","RNS","Northampton General Hospital NHS Trust",5,10665,0.5]
[null,"Y60","Midlands Commissioning Region","RP1","Northamptonshire Healthcare NHS Foundation Trust",0,45,0]
[null,"Y60","Midlands Commissioning Region","RX1","Nottingham University Hospitals NHS Trust",16,27200,0.6]
[null,"Y60","Midlands Commissioning Region","RHA","Nottinghamshire Healthcare NHS Foundation Trust",0,395,0]
[null,"Y60","Midlands Commissioning Region","RXK","Sandwell and West Birmingham Hospitals NHS Trust",15,9255,1.6]
[null,"Y60","Midlands Commissioning Region","RK5","Sherwood Forest Hospitals NHS Foundation Trust",0,9875,0]
[null,"Y60","Midlands Commissioning Region","R1D","Shropshire Community Health NHS Trust",0,200,0]
[null,"Y60","Midlands Commissioning Region","RJC","South Warwickshire NHS Foundation Trust",0,7855,0]
[null,"Y60","Midlands Commissioning Region","RNA","The Dudley Group NHS Foundation Trust",32,8915,3.6]
[null,"Y60","Midlands Commissioning Region","RL1","The Robert Jones and Agnes Hunt Orthopaedic Hospital NHS Foundation Trust",0,935,0]
[null,"Y60","Midlands Commissioning Region","RRJ","The Royal Orthopaedic Hospital NHS Foundation Trust",0,1140,0]
[null,"Y60","Midlands Commissioning Region","RL4","The Royal Wolverhampton NHS Trust",0,12880,0]
[null,"Y60","Midlands Commissioning Region","RXW","The Shrewsbury and Telford Hospital NHS Trust",47,13555,3.5]
[null,"Y60","Midlands Commissioning Region","RWD","United Lincolnshire Hospitals NHS Trust",37,12505,3]
[null,"Y60","Midlands Commissioning Region","RRK","University Hospitals Birmingham NHS Foundation Trust",0,34740,0]
[null,"Y60","Midlands Commissioning Region","RKB","University Hospitals Coventry and Warwickshire NHS Trust",0,17085,0]
[null,"Y60","Midlands Commissioning Region","RTG","University Hospitals of Derby and Burton NHS Foundation Trust",0,23875,0]
[null,"Y60","Midlands Commissioning Region","RWE","University Hospitals of Leicester NHS Trust",0,25485,0]
[null,"Y60","Midlands Commissioning Region","RJE","University Hospitals of North Midlands NHS Trust",0,23170,0]
[null,"Y60","Midlands Commissioning Region","RBK","Walsall Healthcare NHS Trust",0,9155,0]
[null,"Y60","Midlands Commissioning Region","RWP","Worcestershire Acute Hospitals NHS Trust",46,14830,3.1]
[null,"Y60","Midlands Commissioning Region","RLQ","Wye Valley NHS Trust",52,5555,9.4]
[null,"Y61","East of England Commissioning Region","RC9","Bedfordshire Hospitals NHS Foundation Trust",3,17035,0.2]
[null,"Y61","East of England Commissioning Region","RGT","Cambridge University Hospitals NHS Foundation Trust",13,16325,0.8]
[null,"Y61","East of England Commissioning Region","RT1","Cambridgeshire and Peterborough NHS Foundation Trust",0,"-","N/A"]
[null,"Y61","East of England Commissioning Region","RWH","East and North Hertfordshire NHS Trust",0,11705,0]
[null,"Y61","East of England Commissioning Region","RDE","East Suffolk and North Essex NHS Foundation Trust",46,20415,2.2999999999999998]
[null,"Y61","East of England Commissioning Region","R1L","Essex Partnership University NHS Foundation Trust",0,285,0]
[null,"Y61","East of England Commissioning Region","RY4","Hertfordshire Community NHS Trust",0,65,0]
[null,"Y61","East of England Commissioning Region","RWR","Hertfordshire Partnership University NHS Foundation Trust",0,185,0]
[null,"Y61","East of England Commissioning Region","RGP","James Paget University Hospitals NHS Foundation Trust",1,6405,0.2]
[null,"Y61","East of England Commissioning Region","RAJ","Mid and South Essex NHS Foundation Trust",0,30745,0]
[null,"Y61","East of England Commissioning Region","RD8","Milton Keynes University Hospital NHS Foundation Trust",0,9500,0]
[null,"Y61","East of England Commissioning Region","RM1","Norfolk and Norwich University Hospitals NHS Foundation Trust",0,19080,0]
[null,"Y61","East of England Commissioning Region","RMY","Norfolk and Suffolk NHS Foundation Trust",0,"-","N/A"]
[null,"Y61","East of England Commissioning Region","RY3","Norfolk Community Health and Care NHS Trust",0,240,0]
[null,"Y61","East of England Commissioning Region","RGN","North West Anglia NHS Foundation Trust",0,13775,0]
[null,"Y61","East of England Commissioning Region","NQA","Provide",0,20,0]
[null,"Y61","East of England Commissioning Region","NVC","Ramsay Healthcare UK Operations Limited",0,10860,0]
[null,"Y61","East of England Commissioning Region","RGM","Royal Papworth Hospital NHS Foundation Trust",0,1815,0]
[null,"Y61","East of England Commissioning Region","RQW","The Princess Alexandra Hospital NHS Trust",6,7245,0.8]
[null,"Y61","East of England Commissioning Region","RCX","The Queen Elizabeth Hospital, King's Lynn, NHS Foundation Trust",22,7390,3]
[null,"Y61","East of England Commissioning Region","RWG","West Hertfordshire Teaching Hospitals NHS Trust",0,10150,0]
[null,"Y61","East of England Commissioning Region","RGR","West Suffolk NHS Foundation Trust",3,7570,0.4]
[null,"Y62","North West Commissioning Region","RBS","Alder Hey Children's NHS Foundation Trust",0,3820,0]
[null,"Y62","North West Commissioning Region","RXL","Blackpool Teaching Hospitals NHS Foundation Trust",2,11385,0.2]
[null,"Y62","North West Commissioning Region","RMC","Bolton NHS Foundation Trust",16,7585,2.1]
[null,"Y62","North West Commissioning Region","RXA","Cheshire and Wirral Partnership NHS Foundation Trust",0,185,0]
[null,"Y62","North West Commissioning Region","RJR","Countess of Chester Hospital NHS Foundation Trust",0,9480,0]
[null,"Y62","North West Commissioning Region","RJN","East Cheshire NHS Trust",84,3205,26.2]
[null,"Y62","North West Commissioning Region","RXR","East Lancashire Hospitals NHS Trust",0,13695,0]
[null,"Y62","North West Commissioning Region","NVG","Fairfield Hospital",0,170,0]
[null,"Y62","North West Commissioning Region","RXV","Greater Manchester Mental Health NHS Foundation Trust",0,170,0]
[null,"Y62","North West Commissioning Region","RW5","Lancashire & South Cumbria NHS Foundation Trust",0,225,0]
[null,"Y62","North West Commissioning Region","RXN","Lancashire Teaching Hospitals NHS Foundation Trust",24,12100,2]
[null,"Y62","North West Commissioning Region","RBQ","Liverpool Heart and Chest Hospital NHS Foundation Trust",0,1200,0]
[null,"Y62","North West Commissioning Region","REM","Liverpool University Hospitals NHS Foundation Trust",0,19185,0]
[null,"Y62","North West Commissioning Region","REP","Liverpool Women's NHS Foundation Trust",0,3290,0]
[null,"Y62","North West Commissioning Region","R0A","Manchester University NHS Foundation Trust",25,31785,0.8]
[null,"Y62","North West Commissioning Region","RW4","Mersey Care NHS Foundation Trust",0,"-","N/A"]
[null,"Y62","North West Commissioning Region","RBT","Mid Cheshire Hospitals NHS Foundation Trust",0,7720,0]
[null,"Y62","North West Commissioning Region","RM3","Northern Care Alliance NHS Foundation Trust",66,23070,2.9]
[null,"Y62","North West Commissioning Region","RT2","Pennine Care NHS Foundation Trust",4,"-","N/A"]
[null,"Y62","North West Commissioning Region","RVY","Southport and Ormskirk Hospital NHS Trust",6,5465,1.1000000000000001]
[null,"Y62","North West Commissioning Region","RBN","St Helens and Knowsley Teaching Hospitals NHS Trust",0,14470,0]
[null,"Y62","North West Commissioning Region","RWJ","Stockport NHS Foundation Trust",0,7975,0]
[null,"Y62","North West Commissioning Region","RMP","Tameside and Glossop Integrated Care NHS Foundation Trust",0,5450,0]
[null,"Y62","North West Commissioning Region","RBV","The Christie NHS Foundation Trust",0,1945,0]
[null,"Y62","North West Commissioning Region","REN","The Clatterbridge Cancer Centre NHS Foundation Trust",0,665,0]
[null,"Y62","North West Commissioning Region","RET","The Walton Centre NHS Foundation Trust",0,1140,0]
[null,"Y62","North West Commissioning Region","RTX","University Hospitals of Morecambe Bay NHS Foundation Trust",3,9110,0.3]
[null,"Y62","North West Commissioning Region","NQT","Hcrg Care Ltd",0,35,0]
[null,"Y62","North West Commissioning Region","NDA","Hcrg Care Services Ltd",0,50,0]
[null,"Y62","North West Commissioning Region","RWW","Warrington and Halton Teaching Hospitals NHS Foundation Trust",5,6290,0.8]
[null,"Y62","North West Commissioning Region","RBL","Wirral University Teaching Hospital NHS Foundation Trust",1,12010,0.1]
[null,"Y62","North West Commissioning Region","RRF","Wrightington, Wigan and Leigh NHS Foundation Trust",0,7970,0]
[null,"Y63","North East and Yorkshire Commissioning Region","RCF","Airedale NHS Foundation Trust",0,6125,0]
[null,"Y63","North East and Yorkshire Commissioning Region","RFF","Barnsley Hospital NHS Foundation Trust",1,7150,0.1]
[null,"Y63","North East and Yorkshire Commissioning Region","TAD","Bradford District Care NHS Foundation Trust",0,70,0]
[null,"Y63","North East and Yorkshire Commissioning Region","RAE","Bradford Teaching Hospitals NHS Foundation Trust",0,12410,0]
[null,"Y63","North East and Yorkshire Commissioning Region","RWY","Calderdale and Huddersfield NHS Foundation Trust",0,10285,0]
[null,"Y63","North East and Yorkshire Commissioning Region","NL3","Care Plus Group",0,"-","N/A"]
[null,"Y63","North East and Yorkshire Commissioning Region","RXP","County Durham and Darlington NHS Foundation Trust",4,13015,0.3]
[null,"Y63","North East and Yorkshire Commissioning Region","RX4","Cumbria, Northumberland, Tyne and Wear NHS Foundation Trust",0,400,0]
[null,"Y63","North East and Yorkshire Commissioning Region","RP5","Doncaster and Bassetlaw Teaching Hospitals NHS Foundation Trust",2,10845,0.2]
[null,"Y63","North East and Yorkshire Commissioning Region","RR7","Gateshead Health NHS Foundation Trust",0,6705,0]
[null,"Y63","North East and Yorkshire Commissioning Region","RCD","Harrogate and District NHS Foundation Trust",0,5125,0]
[null,"Y63","North East and Yorkshire Commissioning Region","RWA","Hull University Teaching Hospitals NHS Trust",0,14120,0]
[null,"Y63","North East and Yorkshire Commissioning Region","RV9","Humber Teaching NHS Foundation Trust",0,175,0]
[null,"Y63","North East and Yorkshire Commissioning Region","RGD","Leeds and York Partnership NHS Foundation Trust",0,"-","N/A"]
[null,"Y63","North East and Yorkshire Commissioning Region","RY6","Leeds Community Healthcare NHS Trust",0,"-","N/A"]
[null,"Y63","North East and Yorkshire Commissioning Region","RR8","Leeds Teaching Hospitals NHS Trust",267,16530,16.2]
[null,"Y63","North East and Yorkshire Commissioning Region","NL8","Locala Community Partnerships CIC",0,"-","N/A"]
[null,"Y63","North East and Yorkshire Commissioning Region","RXF","Mid Yorkshire Hospitals NHS Trust",0,13460,0]
[null,"Y63","North East and Yorkshire Commissioning Region","NQL","Navigo Health and Social Care CIC",0,"-","N/A"]
[null,"Y63","North East and Yorkshire Commissioning Region","RNN","North Cumbria Integrated Care NHS Foundation Trust",13,7175,1.8]
[null,"Y63","North East and Yorkshire Commissioning Region","RVW","North Tees and Hartlepool NHS Foundation Trust",0,9170,0]
[null,"Y63","North East and Yorkshire Commissioning Region","RJL","Northern Lincolnshire and Goole NHS Foundation Trust",0,10015,0]
[null,"Y63","North East and Yorkshire Commissioning Region","RTF","Northumbria Healthcare NHS Foundation Trust",0,14755,0]
[null,"Y63","North East and Yorkshire Commissioning Region","RXE","Rotherham Doncaster and South Humber NHS Foundation Trust",0,280,0]
[null,"Y63","North East and Yorkshire Commissioning Region","RCU","Sheffield Children's NHS Foundation Trust",0,2065,0]
[null,"Y63","North East and Yorkshire Commissioning Region","TAH","Sheffield Health & Social Care NHS Foundation Trust",0,"-","N/A"]
[null,"Y63","North East and Yorkshire Commissioning Region","RHQ","Sheffield Teaching Hospitals NHS Foundation Trust",0,22820,0]
[null,"Y63","North East and Yorkshire Commissioning Region","RTR","South Tees Hospitals NHS Foundation Trust",2,13540,0.1]
[null,"Y63","North East and Yorkshire Commissioning Region","R0B","South Tyneside and Sunderland NHS Foundation Trust",0,13965,0]
[null,"Y63","North East and Yorkshire Commissioning Region","RXG","South West Yorkshire Partnership NHS Foundation Trust",0,180,0]
[null,"Y63","North East and Yorkshire Commissioning Region","RX3","Tees, Esk and Wear Valleys NHS Foundation Trust",0,"-","N/A"]
[null,"Y63","North East and Yorkshire Commissioning Region","RTD","The Newcastle Upon Tyne Hospitals NHS Foundation Trust",0,22835,0]
[null,"Y63","North East and Yorkshire Commissioning Region","RFR","The Rotherham NHS Foundation Trust",1,7195,0.1]
[null,"Y63","North East and Yorkshire Commissioning Region","RCB","York and Scarborough Teaching Hospitals NHS Foundation Trust",15,17215,0.9]
[]
[null,"Notes:"]
[null,"1. Finished Consultant Episode (FCE) data from Hospital Episode Statistics (HES) are used to calculate the MSA breach rate (for further details on methodology of this calculation see footnote 2). The FCE data presented are a snapshot of latest HES data available at the time of the MSA publication for the relevant data period (due to timings of HES publication in some months this will represent \"final\" HES data, however for some months this is \"provisional\" HES data). These are used solely for the purposes of calculating an MSA breach rate to allow comparisons across providers and of change over time.\n\nFrom 2017/18 onwards, where revisions are published, the FCE denominator is updated to reflect final HES data where available so is subject to change. The FCE data may not match the published HES timeseries (where provisional data is updated on a monthly basis).  The official and most recent timeseries of HES data is available on the NHS Digital website which will reflect any more recent updates to the provisional HES FCE data. https://digital.nhs.uk/data-and-information/publications/statistical/hospital-episode-statistics-for-admitted-patient-care-outpatient-and-accident-and-emergency-data\n\nRegional level FCE data is displayed accordance with HES disclosure control methodology. \nhttps://digital.nhs.uk/binaries/content/assets/website-assets/data-and-information/data-tools-and-services/data-services/hospital-episode-statistics/hes_analysis_guide_september_2018-v1.1.pdf"]
[null,"HES Disclosure Control\nIn order to protect patient confidentiality '*' appears in the table above for all sub-national breakdowns, where it is possible to calculate a value between 1 and 7 from the data presented. All other sub-national data has been rounded to the nearest 5.\n\nIf the national total is between 1 and 7 (inclusive), no sub-national breakdown will be displayed. \n\nIf the national total is greater than or equal to 8;\na. Sub-national counts between 1 and 7 (inclusive) will be displayed as ’*’.\nb. Zeroes will be unchanged.\nc. All other counts will be rounded to the nearest 5."]
[]
[null,"2. The MSA breach rate is the number of MSA breaches, per 1,000 finished consultant episodes. Due to timeliness of HES data, there is a one year lag in the denominator data, compared to the MSA breaches. For example, the breach rate for April 2022 is calculated by dividing the total MSA breaches in April 2022 (numerator) by the number of Finished Consultant Episodes in April 2021 (denominator). As such, it is only an estimation. Please see Breach Rate methodology paper for further information via: http://www.england.nhs.uk/statistics/mixed-sex-accommodation/\n\nWhen calculating rates or percentages at regional level using HES data;\n   1) Where the numerator or denominator is between 1 and 7 (inclusive), no percentage or rate is calculated, and a ’*’ will be displayed.\n   2) Where the numerator is zero, the percentage will be 0%.\n   3) Where the unrounded numerator and denominator are greater than or equal to 8, a percentage or rate is calculated using the rounded numerator or denominator.\n   4).Where no denominator data is available, no percentage or rate is calculated, and ’N/A’ will be displayed."]
[null,"3. The Breach Rate for some organisations - particularly Care Trusts, Community Trusts or Mental Health Providers - may be artificially high due to their reporting of episodes of care. Activity for these organisations may be led by multi-disciplinary teams, which would not necessarily be captured as Finished Consultant Episodes and would therefore potentially be excluded from the denominator, leading to an inflated breach rate estimate."]

{"sheet":"Provider - Site","index":2,"n_rows":114,"n_cols":8,"rows_kept":114,"cut":false,"hidden":false,"merged":[[111,1,111,4],[113,1,113,4]]}
[]
[null,"Title:","Mixed-Sex Accommodation"]
[null,"Summary:","The total occurrences of unjustified mixing in relation to sleeping accommodation."]
[]
[null,"Period:",{"$f":"Publicationmonth","v":"May 2022"}]
[null,"Sources:",{"$f":"'National & Regional Team'!C6","v":"MSA, collected via SDCS, NHS England and NHS Improvement (MSA breaches)"}]
[null,null,{"$f":"'National & Regional Team'!C7","v":"Hospital Episode Statistics (HES), NHS Digital (FCE data)"}]
[null,"Basis:","Provider"]
[null,"Published:",{"$f":"Publicationdate","v":"14th July 2022"}]
[null,"Revised:","-"]
[null,"Status:","Published"]
[null,"Contact:","Katie Tither - england.nhsdata@nhs.net"]
[]
[null,"Provider by Site Data"]
[null,"Region Code","Region Name","Organisation Code","Organisation Name","Hospital Code","Hospital Site Name","MSA Breaches1,2"]
[null,"-","-","-","England","-","-",2344]
[]
[null,"Y56","London Commissioning Region","RF4","Barking, Havering and Redbridge University Hospitals NHS Trust","RF4QH","Queen's Hospital - RF4QH",158]
[null,"Y56","London Commissioning Region","R1H","Barts Health NHS Trust","R1HNH","Newham General Hospital - R1HNH",6]
[null,"Y56","London Commissioning Region","R1H","Barts Health NHS Trust","R1H12","The Royal London Hospital - R1H12",1]
[null,"Y56","London Commissioning Region","R1H","Barts Health NHS Trust","R1HKH","Whipps Cross University Hospital - R1HKH",8]
[null,"Y56","London Commissioning Region","RQM","Chelsea and Westminster Hospital NHS Foundation Trust","RQM91","West Middlesex University Hospital - RQM91",19]
[null,"Y56","London Commissioning Region","RJ6","Croydon Health Services NHS Trust","RJ611","Mayday University Hospital - RJ611",23]
[null,"Y56","London Commissioning Region","RVR","Epsom and St Helier University Hospitals NHS Trust","RVR50","Epsom Hospital - RVR50",17]
[null,"Y56","London Commissioning Region","RVR","Epsom and St Helier University Hospitals NHS Trust","RVR05","St Helier Hospital - RVR05",13]
[null,"Y56","London Commissioning Region","RJ1","Guy's and St Thomas' NHS Foundation Trust","RJ100","Guy's And St Thomas' Hospitals - RJ100",19]
[null,"Y56","London Commissioning Region","RQX","Homerton Healthcare NHS Foundation Trust","RQXM1","Homerton University Hospital - RQXM1",39]
[null,"Y56","London Commissioning Region","RYJ","Imperial College Healthcare NHS Trust","RYJ02","Charing Cross Hospital - RYJ02",57]
[null,"Y56","London Commissioning Region","RYJ","Imperial College Healthcare NHS Trust","RYJ03","Hammersmith Hospital - RYJ03",44]
[null,"Y56","London Commissioning Region","RYJ","Imperial College Healthcare NHS Trust","RYJ01","St Mary's Hospital (HQ) - RYJ01",29]
[null,"Y56","London Commissioning Region","RJZ","King's College Hospital NHS Foundation Trust","RJZ30","Princess Royal University Hospital - RJZ30",11]
[null,"Y56","London Commissioning Region","RJ2","Lewisham and Greenwich NHS Trust","RJ231","Queen Elizabeth Hospital - RJ231",12]
[null,"Y56","London Commissioning Region","R1K","London North West University Healthcare NHS Trust","R1K04","Ealing Hospital - R1K04",1]
[null,"Y56","London Commissioning Region","R1K","London North West University Healthcare NHS Trust","R1K01","Northwick Park Hospital - R1K01",29]
[null,"Y56","London Commissioning Region","RAL","Royal Free London NHS Foundation Trust","RAL26","Barnet Hospital - RAL26",26]
[null,"Y56","London Commissioning Region","RAN","Royal National Orthopaedic Hospital NHS Trust","RAN01","The Royal National Orthopaedic Hospital (Stanmore) - RAN01",3]
[null,"Y56","London Commissioning Region","RV5","South London and Maudsley NHS Foundation Trust","RV505","Bethlem Royal Hospital - RV505",2]
[null,"Y56","London Commissioning Region","RKL","West London NHS Trust","RKL62","The Limes - RKL62",11]
[null,"Y56","London Commissioning Region","RKE","Whittington Health NHS Trust","RKEQ4","The Whittington Hospital - RKEQ4",5]
[null,"Y58","South West Commissioning Region","RBD","Dorset County Hospital NHS Foundation Trust","RBD01","Dorset County Hospital - RBD01",85]
[null,"Y58","South West Commissioning Region","RTE","Gloucestershire Hospitals NHS Foundation Trust","RTE01","Cheltenham General Hospital - RTE01",9]
[null,"Y58","South West Commissioning Region","RTE","Gloucestershire Hospitals NHS Foundation Trust","RTE03","Gloucestershire Royal Hospital - RTE03",15]
[null,"Y58","South West Commissioning Region","RD1","Royal United Hospitals Bath NHS Foundation Trust","RD130","Royal United Hospital - RD130",8]
[null,"Y58","South West Commissioning Region","RNZ","Salisbury NHS Foundation Trust","RNZ02","Salisbury District Hospital - RNZ02",98]
[null,"Y58","South West Commissioning Region","R0D","University Hospitals Dorset NHS Foundation Trust","R0D02","Royal Bournemouth Hospital - R0D02",48]
[null,"Y59","South East Commissioning Region","RTK","Ashford and St Peter's Hospitals NHS Foundation Trust","RTK01","St Peter's Hospital - RTK01",27]
[null,"Y59","South East Commissioning Region","RN7","Dartford and Gravesham NHS Trust","RN707","Darent Valley Hospital - RN707",37]
[null,"Y59","South East Commissioning Region","RVV","East Kent Hospitals University NHS Foundation Trust","RVVKC","Kent and Canterbury Hospital - RVVKC",4]
[null,"Y59","South East Commissioning Region","RVV","East Kent Hospitals University NHS Foundation Trust","RVV09","Queen Elizabeth The Queen Mother Hospital - RVV09",25]
[null,"Y59","South East Commissioning Region","RVV","East Kent Hospitals University NHS Foundation Trust","RVV01","William Harvey Hospital (Ashford) - RVV01",25]
[null,"Y59","South East Commissioning Region","RXC","East Sussex Healthcare NHS Trust","RXC01","Conquest Hospital - RXC01",19]
[null,"Y59","South East Commissioning Region","RXC","East Sussex Healthcare NHS Trust","RXC02","Eastbourne District General Hospital - RXC02",14]
[null,"Y59","South East Commissioning Region","RDU","Frimley Health NHS Foundation Trust","RDU01","Frimley Park Hospital - RDU01",21]
[null,"Y59","South East Commissioning Region","RN5","Hampshire Hospitals NHS Foundation Trust","RN541","Royal Hampshire County Hospital - RN541",1]
[null,"Y59","South East Commissioning Region","RPA","Medway NHS Foundation Trust","RPA02","Medway Maritime Hospital - RPA02",92]
[null,"Y59","South East Commissioning Region","RTH","Oxford University Hospitals NHS Foundation Trust","RTH02","Churchill Hospital - RTH02",6]
[null,"Y59","South East Commissioning Region","RTH","Oxford University Hospitals NHS Foundation Trust","RTH08","John Radcliffe Hospital - RTH08",47]
[null,"Y59","South East Commissioning Region","RHW","Royal Berkshire NHS Foundation Trust","RHW01","Royal Berkshire Hospital - RHW01",53]
[null,"Y59","South East Commissioning Region","RHM","University Hospital Southampton NHS Foundation Trust","RHM01","Southampton General Hospital - RHM01",67]
[null,"Y59","South East Commissioning Region","RYR","University Hospitals Sussex NHS Foundation Trust","N6J7V","Princess Royal Hospital - N6J7V",10]
[null,"Y59","South East Commissioning Region","RYR","University Hospitals Sussex NHS Foundation Trust","E0A3H","Royal Sussex County Hospital - E0A3H",158]
[null,"Y59","South East Commissioning Region","RYR","University Hospitals Sussex NHS Foundation Trust","RYR16","St Richard'S Hospital - RYR16",24]
[null,"Y59","South East Commissioning Region","RYR","University Hospitals Sussex NHS Foundation Trust","RYR18","Worthing Hospital - RYR18",33]
[null,"Y60","Midlands Commissioning Region","RNS","Northampton General Hospital NHS Trust","RNS01","Northampton General Hospital (Acute) - RNS01",5]
[null,"Y60","Midlands Commissioning Region","RX1","Nottingham University Hospitals NHS Trust","RX1CC","Nottingham University Hospitals NHS Trust - City Campus - RX1CC",4]
[null,"Y60","Midlands Commissioning Region","RX1","Nottingham University Hospitals NHS Trust","RX1RA","Nottingham University Hospitals NHS Trust - Queen's Medical Centre Campus - RX1RA",12]
[null,"Y60","Midlands Commissioning Region","RXK","Sandwell and West Birmingham Hospitals NHS Trust","RXK01","Sandwell General Hospital - RXK01",15]
[null,"Y60","Midlands Commissioning Region","RNA","The Dudley Group NHS Foundation Trust","RNA01","Russells Hall Hospital - RNA01",32]
[null,"Y60","Midlands Commissioning Region","RXW","The Shrewsbury and Telford Hospital NHS Trust","RXWAS","Royal Shrewsbury Hospital - RXWAS",28]
[null,"Y60","Midlands Commissioning Region","RXW","The Shrewsbury and Telford Hospital NHS Trust","RXWAT","The Princess Royal Hospital - RXWAT",19]
[null,"Y60","Midlands Commissioning Region","RWD","United Lincolnshire Hospitals NHS Trust","RWDDA","Lincoln County Hospital - RWDDA",37]
[null,"Y60","Midlands Commissioning Region","RWP","Worcestershire Acute Hospitals NHS Trust","RWP01","Alexandra Hospital - RWP01",8]
[null,"Y60","Midlands Commissioning Region","RWP","Worcestershire Acute Hospitals NHS Trust","RWP50","Worcestershire Royal Hospital - RWP50",38]
[null,"Y60","Midlands Commissioning Region","RLQ","Wye Valley NHS Trust","RLQ01","Hereford County Hospital - RLQ01",52]
[null,"Y61","East of England Commissioning Region","RC9","Bedfordshire Hospitals NHS Foundation Trust","RC979","Bedford Hospital South Wing - RC979",3]
[null,"Y61","East of England Commissioning Region","RGT","Cambridge University Hospitals NHS Foundation Trust","RGT01","Addenbrooke's Hospital - RGT01",13]
[null,"Y61","East of England Commissioning Region","RDE","East Suffolk and North Essex NHS Foundation Trust","RDEE4","Colchester General Hospital - RDEE4",7]
[null,"Y61","East of England Commissioning Region","RDE","East Suffolk and North Essex NHS Foundation Trust","RDE03","Ipswich Hospital - RDE03",39]
[null,"Y61","East of England Commissioning Region","RGP","James Paget University Hospitals NHS Foundation Trust","RGP75","James Paget University Hospital - RGP75",1]
[null,"Y61","East of England Commissioning Region","RQW","The Princess Alexandra Hospital NHS Trust","RQWG0","Princess Alexandra Hospital - RQWG0",6]
[null,"Y61","East of England Commissioning Region","RCX","The Queen Elizabeth Hospital, King's Lynn, NHS Foundation Trust","RCX70","The Queen Elizabeth Hospital - RCX70",22]
[null,"Y61","East of England Commissioning Region","RGR","West Suffolk NHS Foundation Trust","RGR50","West Suffolk Hospital - RGR50",3]
[null,"Y62","North West Commissioning Region","RXL","Blackpool Teaching Hospitals NHS Foundation Trust","RXL01","Blackpool Victoria Hospital - RXL01",2]
[null,"Y62","North West Commissioning Region","RMC","Bolton NHS Foundation Trust","RMC01","Royal Bolton Hospital - RMC01",16]
[null,"Y62","North West Commissioning Region","RJN","East Cheshire NHS Trust","RJN71","Macclesfield District General Hospital - RJN71",84]
[null,"Y62","North West Commissioning Region","RXN","Lancashire Teaching Hospitals NHS Foundation Trust","RXN01","Chorley and South Ribble Hospital - RXN01",7]
[null,"Y62","North West Commissioning Region","RXN","Lancashire Teaching Hospitals NHS Foundation Trust","RXN02","Royal Preston Hospital - RXN02",17]
[null,"Y62","North West Commissioning Region","R0A","Manchester University NHS Foundation Trust","R0A02","Manchester Royal Infirmary - R0A02",9]
[null,"Y62","North West Commissioning Region","R0A","Manchester University NHS Foundation Trust","R0A66","North Manchester General Hospital - R0A66",14]
[null,"Y62","North West Commissioning Region","R0A","Manchester University NHS Foundation Trust","R0A07","Wythenshawe Hospital - R0A07",2]
[null,"Y62","North West Commissioning Region","RM3","Northern Care Alliance NHS Foundation Trust","RM315","Fairfield Hospital - RM315",1]
[null,"Y62","North West Commissioning Region","RM3","Northern Care Alliance NHS Foundation Trust","RM317","Royal Oldham Hospital - RM317",64]
[null,"Y62","North West Commissioning Region","RM3","Northern Care Alliance NHS Foundation Trust","RM301","Salford Royal - RM301",1]
[null,"Y62","North West Commissioning Region","RT2","Pennine Care NHS Foundation Trust","RT205","Stepping Hill Hospital Mental Health Services - RT205",4]
[null,"Y62","North West Commissioning Region","RVY","Southport and Ormskirk Hospital NHS Trust","RVY01","Southport and Formby District General Hospital - RVY01",6]
[null,"Y62","North West Commissioning Region","RTX","University Hospitals of Morecambe Bay NHS Foundation Trust","RTXBU","Furness General Hospital - RTXBU",3]
[null,"Y62",{"$f":"VLOOKUP(B97,'Provider - All'!B:C,2,0)","v":"North West Commissioning Region"},"RWW",{"$f":"VLOOKUP(D97,'Provider - All'!D:E,2,0)","v":"Warrington and Halton Teaching Hospitals NHS Foundation Trust"},"RWWWH","Warrington Hospital - RWWWH",5]
[null,"Y62",{"$f":"VLOOKUP(B98,'Provider - All'!B:C,2,0)","v":"North West Commissioning Region"},"RBL",{"$f":"VLOOKUP(D98,'Provider - All'!D:E,2,0)","v":"Wirral University Teaching Hospital NHS Foundation Trust"},"RBL14","Arrowe Park Hospital - RBL14",1]
[null,"Y63",{"$f":"VLOOKUP(B99,'Provider - All'!B:C,2,0)","v":"North East and Yorkshire Commissioning Region"},"RFF",{"$f":"VLOOKUP(D99,'Provider - All'!D:E,2,0)","v":"Barnsley Hospital NHS Foundation Trust"},"RFFAA","Barnsley Hospital NHS Foundation Trust HQ - RFFAA",1]
[null,"Y63",{"$f":"VLOOKUP(B100,'Provider - All'!B:C,2,0)","v":"North East and Yorkshire Commissioning Region"},"RXP",{"$f":"VLOOKUP(D100,'Provider - All'!D:E,2,0)","v":"County Durham and Darlington NHS Foundation Trust"},"RXPDA","Darlington Memorial Hospital - RXPDA",1]
[null,"Y63",{"$f":"VLOOKUP(B101,'Provider - All'!B:C,2,0)","v":"North East and Yorkshire Commissioning Region"},"RXP",{"$f":"VLOOKUP(D101,'Provider - All'!D:E,2,0)","v":"County Durham and Darlington NHS Foundation Trust"},"RXPCP","University Hospital Of North Durham - RXPCP",3]
[null,"Y63",{"$f":"VLOOKUP(B102,'Provider - All'!B:C,2,0)","v":"North East and Yorkshire Commissioning Region"},"RP5",{"$f":"VLOOKUP(D102,'Provider - All'!D:E,2,0)","v":"Doncaster and Bassetlaw Teaching Hospitals NHS Foundation Trust"},"RP5BA","Bassetlaw Hospital - RP5BA",2]
[null,"Y63",{"$f":"VLOOKUP(B103,'Provider - All'!B:C,2,0)","v":"North East and Yorkshire Commissioning Region"},"RR8",{"$f":"VLOOKUP(D103,'Provider - All'!D:E,2,0)","v":"Leeds Teaching Hospitals NHS Trust"},"RR801","Leeds General Infirmary - RR801",178]
[null,"Y63",{"$f":"VLOOKUP(B104,'Provider - All'!B:C,2,0)","v":"North East and Yorkshire Commissioning Region"},"RR8",{"$f":"VLOOKUP(D104,'Provider - All'!D:E,2,0)","v":"Leeds Teaching Hospitals NHS Trust"},"RR813","St James's University Hospital - RR813",89]
[null,"Y63",{"$f":"VLOOKUP(B105,'Provider - All'!B:C,2,0)","v":"North East and Yorkshire Commissioning Region"},"RNN",{"$f":"VLOOKUP(D105,'Provider - All'!D:E,2,0)","v":"North Cumbria Integrated Care NHS Foundation Trust"},"RNN62","Cumberland Infirmary - RNN62",13]
[null,"Y63",{"$f":"VLOOKUP(B106,'Provider - All'!B:C,2,0)","v":"North East and Yorkshire Commissioning Region"},"RTR",{"$f":"VLOOKUP(D106,'Provider - All'!D:E,2,0)","v":"South Tees Hospitals NHS Foundation Trust"},"RTRAT","The James Cook University Hospital - RTRAT",2]
[null,"Y63",{"$f":"VLOOKUP(B107,'Provider - All'!B:C,2,0)","v":"North East and Yorkshire Commissioning Region"},"RFR",{"$f":"VLOOKUP(D107,'Provider - All'!D:E,2,0)","v":"The Rotherham NHS Foundation Trust"},"RFRPA","Rotherham District General Hospital - RFRPA",1]
[null,"Y63",{"$f":"VLOOKUP(B108,'Provider - All'!B:C,2,0)","v":"North East and Yorkshire Commissioning Region"},"RCB",{"$f":"VLOOKUP(D108,'Provider - All'!D:E,2,0)","v":"York and Scarborough Teaching Hospitals NHS Foundation Trust"},"RCBCA","Scarborough General Hospital - RCBCA",3]
[null,"Y63",{"$f":"VLOOKUP(B109,'Provider - All'!B:C,2,0)","v":"North East and Yorkshire Commissioning Region"},"RCB",{"$f":"VLOOKUP(D109,'Provider - All'!D:E,2,0)","v":"York and Scarborough Teaching Hospitals NHS Foundation Trust"},"RCB55","York Hospital - RCB55",12]
[]
[null,"Notes:"]
[null,"1. Only those provider sites for which one or more breaches were reported are displayed.  Those sites with zero breaches and for organisations where data was not returned are excluded."]
[]
[null,"2. A breach rate is not calculated for the site-level data, as reliable activity data for the denominator in the breach rate calculation is not available at site level."]

{"sheet":"Provider - By Type","index":3,"n_rows":249,"n_cols":8,"rows_kept":249,"cut":false,"hidden":false,"merged":[[244,1,244,7],[248,1,248,7],[245,1,245,7],[247,1,247,7]]}
[]
[null,"Title:","Mixed-Sex Accommodation"]
[null,"Summary:","The total occurrences of unjustified mixing in relation to sleeping accommodation."]
[]
[null,"Period:",{"$f":"Publicationmonth","v":"May 2022"}]
[null,"Sources:",{"$f":"'National & Regional Team'!C6","v":"MSA, collected via SDCS, NHS England and NHS Improvement (MSA breaches)"}]
[null,null,{"$f":"'National & Regional Team'!C7","v":"Hospital Episode Statistics (HES), NHS Digital (FCE data)"}]
[null,"Basis:","Provider"]
[null,"Published:",{"$f":"Publicationdate","v":"14th July 2022"}]
[null,"Revised:","-"]
[null,"Status:","Published"]
[null,"Contact:","Katie Tither - england.nhsdata@nhs.net"]
[]
[null,"Acute Provider Level Data"]
[null,"Region Code","Region Name","Organisation Code","Organisation Name","MSA Breaches",{"$f":"'National & Regional Team'!E15","v":"Finished Consultant Episodes¹‚²\n(from May-21)"},"Breach Rate2,3"]
[null,"-"," ","-","All Acute Providers",2327,1579325,1.5]
[]
[null,"Y56","London Commissioning Region","RF4","Barking, Havering And Redbridge University Hospitals NHS Trust",158,12715,12.4]
[null,"Y56","London Commissioning Region","R1H","Barts Health NHS Trust",15,25230,0.6]
[null,"Y56","London Commissioning Region","RQM","Chelsea And Westminster Hospital NHS Foundation Trust",19,13905,1.4]
[null,"Y56","London Commissioning Region","RJ6","Croydon Health Services NHS Trust",23,6495,3.5]
[null,"Y56","London Commissioning Region","RVR","Epsom And St Helier University Hospitals NHS Trust",30,7940,3.8]
[null,"Y56","London Commissioning Region","RP4","Great Ormond Street Hospital For Children NHS Foundation Trust",0,3700,0]
[null,"Y56","London Commissioning Region","RJ1","Guy's And St Thomas' NHS Foundation Trust",19,17360,1.1000000000000001]
[null,"Y56","London Commissioning Region","RQX","Homerton Healthcare NHS Foundation Trust",39,6345,6.1]
[null,"Y56","London Commissioning Region","RYJ","Imperial College Healthcare NHS Trust",130,19050,6.8]
[null,"Y56","London Commissioning Region","RJZ","King's College Hospital NHS Foundation Trust",11,21505,0.5]
[null,"Y56","London Commissioning Region","RAX","Kingston Hospital NHS Foundation Trust",0,8255,0]
[null,"Y56","London Commissioning Region","RJ2","Lewisham And Greenwich NHS Trust",12,14905,0.8]
[null,"Y56","London Commissioning Region","R1K","London North West University Healthcare NHS Trust",30,18895,1.6]
[null,"Y56","London Commissioning Region","RAP","North Middlesex University Hospital NHS Trust",0,7195,0]
[null,"Y56","London Commissioning Region","RAL","Royal Free London NHS Foundation Trust",26,17425,1.5]
[null,"Y56","London Commissioning Region","RAN","Royal National Orthopaedic Hospital NHS Trust",3,1250,2.4]
[null,"Y56","London Commissioning Region","RJ7","St George's University Hospitals NHS Foundation Trust",0,13110,0]
[null,"Y56","London Commissioning Region","RAS","The Hillingdon Hospitals NHS Foundation Trust",0,4975,0]
[null,"Y56","London Commissioning Region","RPY","The Royal Marsden NHS Foundation Trust",0,5915,0]
[null,"Y56","London Commissioning Region","RRV","University College London Hospitals NHS Foundation Trust",0,14485,0]
[null,"Y56","London Commissioning Region","RKE","Whittington Health NHS Trust",5,4820,1]
[null,"Y58","South West Commissioning Region","RBD","Dorset County Hospital NHS Foundation Trust",85,5355,15.9]
[null,"Y58","South West Commissioning Region","RTE","Gloucestershire Hospitals NHS Foundation Trust",24,17100,1.4]
[null,"Y58","South West Commissioning Region","RN3","Great Western Hospitals NHS Foundation Trust",0,9005,0]
[null,"Y58","South West Commissioning Region","RVJ","North Bristol NHS Trust",0,13925,0]
[null,"Y58","South West Commissioning Region","REF","Royal Cornwall Hospitals NHS Trust",0,14525,0]
[null,"Y58","South West Commissioning Region","RH8","Royal Devon University Healthcare NHS Foundation Trust",0,19275,0]
[null,"Y58","South West Commissioning Region","RD1","Royal United Hospitals Bath NHS Foundation Trust",8,10165,0.8]
[null,"Y58","South West Commissioning Region","RNZ","Salisbury NHS Foundation Trust",98,5410,18.100000000000001]
[null,"Y58","South West Commissioning Region","RA9","Torbay And South Devon NHS Foundation Trust",0,8365,0]
[null,"Y58","South West Commissioning Region","RA7","University Hospitals Bristol And Weston NHS Foundation Trust",0,16080,0]
[null,"Y58","South West Commissioning Region","R0D","University Hospitals Dorset NHS Foundation Trust",48,17695,2.7]
[null,"Y58","South West Commissioning Region","RK9","University Hospitals Plymouth NHS Trust",0,13720,0]
[null,"Y58","South West Commissioning Region","RA4","Yeovil District Hospital NHS Foundation Trust",0,4750,0]
[null,"Y59","South East Commissioning Region","RTK","Ashford And St Peter's Hospitals NHS Foundation Trust",27,7260,3.7]
[null,"Y59","South East Commissioning Region","RXQ","Buckinghamshire Healthcare NHS Trust",0,9515,0]
[null,"Y59","South East Commissioning Region","RN7","Dartford And Gravesham NHS Trust",37,8815,4.2]
[null,"Y59","South East Commissioning Region","RVV","East Kent Hospitals University NHS Foundation Trust",54,17830,3]
[null,"Y59","South East Commissioning Region","RXC","East Sussex Healthcare NHS Trust",33,11670,2.8]
[null,"Y59","South East Commissioning Region","RDU","Frimley Health NHS Foundation Trust",21,17900,1.2]
[null,"Y59","South East Commissioning Region","RN5","Hampshire Hospitals NHS Foundation Trust",1,12570,0.1]
[null,"Y59","South East Commissioning Region","R1F","Isle Of Wight NHS Trust",0,3920,0]
[null,"Y59","South East Commissioning Region","RWF","Maidstone And Tunbridge Wells NHS Trust",0,12590,0]
[null,"Y59","South East Commissioning Region","RPA","Medway NHS Foundation Trust",92,8285,11.1]
[null,"Y59","South East Commissioning Region","RTH","Oxford University Hospitals NHS Foundation Trust",53,19845,2.7]
[null,"Y59","South East Commissioning Region","RHU","Portsmouth Hospitals University National Health Service Trust",0,16210,0]
[null,"Y59","South East Commissioning Region","RPC","Queen Victoria Hospital NHS Foundation Trust",0,1750,0]
[null,"Y59","South East Commissioning Region","RHW","Royal Berkshire NHS Foundation Trust",53,13350,4]
[null,"Y59","South East Commissioning Region","RA2","Royal Surrey County Hospital NHS Foundation Trust",0,8290,0]
[null,"Y59","South East Commissioning Region","RTP","Surrey And Sussex Healthcare NHS Trust",0,13105,0]
[null,"Y59","South East Commissioning Region","RHM","University Hospital Southampton NHS Foundation Trust",67,16935,4]
[null,"Y59","South East Commissioning Region","RYR","University Hospitals Sussex NHS Foundation Trust",225,28195,8]
[null,"Y60","Midlands Commissioning Region","RQ3","Birmingham Women's And Children's NHS Foundation Trust",0,5280,0]
[null,"Y60","Midlands Commissioning Region","RFS","Chesterfield Royal Hospital NHS Foundation Trust",0,7750,0]
[null,"Y60","Midlands Commissioning Region","RLT","George Eliot Hospital NHS Trust",0,4090,0]
[null,"Y60","Midlands Commissioning Region","RNQ","Kettering General Hospital NHS Foundation Trust",0,8970,0]
[null,"Y60","Midlands Commissioning Region","RNS","Northampton General Hospital NHS Trust",5,10665,0.5]
[null,"Y60","Midlands Commissioning Region","RX1","Nottingham University Hospitals NHS Trust",16,27200,0.6]
[null,"Y60","Midlands Commissioning Region","RXK","Sandwell And West Birmingham Hospitals NHS Trust",15,9255,1.6]
[null,"Y60","Midlands Commissioning Region","RK5","Sherwood Forest Hospitals NHS Foundation Trust",0,9875,0]
[null,"Y60","Midlands Commissioning Region","RJC","South Warwickshire NHS Foundation Trust",0,7855,0]
[null,"Y60","Midlands Commissioning Region","RNA","The Dudley Group NHS Foundation Trust",32,8915,3.6]
[null,"Y60","Midlands Commissioning Region","RL1","The Robert Jones And Agnes Hunt Orthopaedic Hospital NHS Foundation Trust",0,935,0]
[null,"Y60","Midlands Commissioning Region","RRJ","The Royal Orthopaedic Hospital NHS Foundation Trust",0,1140,0]
[null,"Y60","Midlands Commissioning Region","RL4","The Royal Wolverhampton NHS Trust",0,12880,0]
[null,"Y60","Midlands Commissioning Region","RXW","The Shrewsbury And Telford Hospital NHS Trust",47,13555,3.5]
[null,"Y60","Midlands Commissioning Region","RWD","United Lincolnshire Hospitals NHS Trust",37,12505,3]
[null,"Y60","Midlands Commissioning Region","RRK","University Hospitals Birmingham NHS Foundation Trust",0,34740,0]
[null,"Y60","Midlands Commissioning Region","RKB","University Hospitals Coventry And Warwickshire NHS Trust",0,17085,0]
[null,"Y60","Midlands Commissioning Region","RTG","University Hospitals Of Derby And Burton NHS Foundation Trust",0,23875,0]
[null,"Y60","Midlands Commissioning Region","RWE","University Hospitals Of Leicester NHS Trust",0,25485,0]
[null,"Y60","Midlands Commissioning Region","RJE","University Hospitals Of North Midlands NHS Trust",0,23170,0]
[null,"Y60","Midlands Commissioning Region","RBK","Walsall Healthcare NHS Trust",0,9155,0]
[null,"Y60","Midlands Commissioning Region","RWP","Worcestershire Acute Hospitals NHS Trust",46,14830,3.1]
[null,"Y60","Midlands Commissioning Region","RLQ","Wye Valley NHS Trust",52,5555,9.4]
[null,"Y61","East of England Commissioning Region","RC9","Bedfordshire Hospitals NHS Foundation Trust",3,17035,0.2]
[null,"Y61","East of England Commissioning Region","RGT","Cambridge University Hospitals NHS Foundation Trust",13,16325,0.8]
[null,"Y61","East of England Commissioning Region","RWH","East And North Hertfordshire NHS Trust",0,11705,0]
[null,"Y61","East of England Commissioning Region","RDE","East Suffolk And North Essex NHS Foundation Trust",46,20415,2.2999999999999998]
[null,"Y61","East of England Commissioning Region","RGP","James Paget University Hospitals NHS Foundation Trust",1,6405,0.2]
[null,"Y61","East of England Commissioning Region","RAJ","Mid And South Essex NHS Foundation Trust",0,30745,0]
[null,"Y61","East of England Commissioning Region","RD8","Milton Keynes University Hospital NHS Foundation Trust",0,9500,0]
[null,"Y61","East of England Commissioning Region","RM1","Norfolk And Norwich University Hospitals NHS Foundation Trust",0,19080,0]
[null,"Y61","East of England Commissioning Region","RGN","North West Anglia NHS Foundation Trust",0,13775,0]
[null,"Y61","East of England Commissioning Region","RGM","Royal Papworth Hospital NHS Foundation Trust",0,1815,0]
[null,"Y61","East of England Commissioning Region","RQW","The Princess Alexandra Hospital NHS Trust",6,7245,0.8]
[null,"Y61","East of England Commissioning Region","RCX","The Queen Elizabeth Hospital, King's Lynn, NHS Foundation Trust",22,7390,3]
[null,"Y61","East of England Commissioning Region","RWG","West Hertfordshire Teaching Hospitals NHS Trust",0,10150,0]
[null,"Y61","East of England Commissioning Region","RGR","West Suffolk NHS Foundation Trust",3,7570,0.4]
[null,"Y62","North West Commissioning Region","RBS","Alder Hey Children's NHS Foundation Trust",0,3820,0]
[null,"Y62","North West Commissioning Region","RXL","Blackpool Teaching Hospitals NHS Foundation Trust",2,11385,0.2]
[null,"Y62","North West Commissioning Region","RMC","Bolton NHS Foundation Trust",16,7585,2.1]
[null,"Y62","North West Commissioning Region","RJR","Countess Of Chester Hospital NHS Foundation Trust",0,9480,0]
[null,"Y62","North West Commissioning Region","RJN","East Cheshire NHS Trust",84,3205,26.2]
[null,"Y62","North West Commissioning Region","RXR","East Lancashire Hospitals NHS Trust",0,13695,0]
[null,"Y62","North West Commissioning Region","RXN","Lancashire Teaching Hospitals NHS Foundation Trust",24,12100,2]
[null,"Y62","North West Commissioning Region","RBQ","Liverpool Heart And Chest Hospital NHS Foundation Trust",0,1200,0]
[null,"Y62","North West Commissioning Region","REM","Liverpool University Hospitals NHS Foundation Trust",0,19185,0]
[null,"Y62","North West Commissioning Region","REP","Liverpool Women's NHS Foundation Trust",0,3290,0]
[null,"Y62","North West Commissioning Region","R0A","Manchester University NHS Foundation Trust",25,31785,0.8]
[null,"Y62","North West Commissioning Region","RBT","Mid Cheshire Hospitals NHS Foundation Trust",0,7720,0]
[null,"Y62","North West Commissioning Region","RM3","Northern Care Alliance NHS Foundation Trust",66,23070,2.9]
[null,"Y62","North West Commissioning Region","RVY","Southport And Ormskirk Hospital NHS Trust",6,5465,1.1000000000000001]
[null,"Y62","North West Commissioning Region","RBN","St Helens And Knowsley Teaching Hospitals NHS Trust",0,14470,0]
[null,"Y62","North West Commissioning Region","RWJ","Stockport NHS Foundation Trust",0,7975,0]
[null,"Y62","North West Commissioning Region","RMP","Tameside And Glossop Integrated Care NHS Foundation Trust",0,5450,0]
[null,"Y62","North West Commissioning Region","RBV","The Christie NHS Foundation Trust",0,1945,0]
[null,"Y62","North West Commissioning Region","REN","The Clatterbridge Cancer Centre NHS Foundation Trust",0,665,0]
[null,"Y62","North West Commissioning Region","RET","The Walton Centre NHS Foundation Trust",0,1140,0]
[null,"Y62","North West Commissioning Region","RTX","University Hospitals Of Morecambe Bay NHS Foundation Trust",3,9110,0.3]
[null,"Y62","North West Commissioning Region","RWW","Warrington And Halton Teaching Hospitals NHS Foundation Trust",5,6290,0.8]
[null,"Y62","North West Commissioning Region","RBL","Wirral University Teaching Hospital NHS Foundation Trust",1,12010,0.1]
[null,"Y62","North West Commissioning Region","RRF","Wrightington, Wigan And Leigh NHS Foundation Trust",0,7970,0]
[null,"Y63","North East and Yorkshire Commissioning Region","RCF","Airedale NHS Foundation Trust",0,6125,0]
[null,"Y63","North East and Yorkshire Commissioning Region","RFF","Barnsley Hospital NHS Foundation Trust",1,7150,0.1]
[null,"Y63","North East and Yorkshire Commissioning Region","RAE","Bradford Teaching Hospitals NHS Foundation Trust",0,12410,0]
[null,"Y63","North East and Yorkshire Commissioning Region","RWY","Calderdale And Huddersfield NHS Foundation Trust",0,10285,0]
[null,"Y63","North East and Yorkshire Commissioning Region","RXP","County Durham And Darlington NHS Foundation Trust",4,13015,0.3]
[null,"Y63","North East and Yorkshire Commissioning Region","RP5","Doncaster And Bassetlaw Teaching Hospitals NHS Foundation Trust",2,10845,0.2]
[null,"Y63","North East and Yorkshire Commissioning Region","RR7","Gateshead Health NHS Foundation Trust",0,6705,0]
[null,"Y63","North East and Yorkshire Commissioning Region","RCD","Harrogate And District NHS Foundation Trust",0,5125,0]
[null,"Y63","North East and Yorkshire Commissioning Region","RWA","Hull University Teaching Hospitals NHS Trust",0,14120,0]
[null,"Y63","North East and Yorkshire Commissioning Region","RR8","Leeds Teaching Hospitals NHS Trust",267,16530,16.2]
[null,"Y63","North East and Yorkshire Commissioning Region","RXF","Mid Yorkshire Hospitals NHS Trust",0,13460,0]
[null,"Y63","North East and Yorkshire Commissioning Region","RNN","North Cumbria Integrated Care NHS Foundation Trust",13,7175,1.8]
[null,"Y63","North East and Yorkshire Commissioning Region","RVW","North Tees And Hartlepool NHS Foundation Trust",0,9170,0]
[null,"Y63","North East and Yorkshire Commissioning Region","RJL","Northern Lincolnshire And Goole NHS Foundation Trust",0,10015,0]
[null,"Y63","North East and Yorkshire Commissioning Region","RTF","Northumbria Healthcare NHS Foundation Trust",0,14755,0]
[null,"Y63","North East and Yorkshire Commissioning Region","RCU","Sheffield Children's NHS Foundation Trust",0,2065,0]
[null,"Y63","North East and Yorkshire Commissioning Region","RHQ","Sheffield Teaching Hospitals NHS Foundation Trust",0,22820,0]
[null,"Y63","North East and Yorkshire Commissioning Region","RTR","South Tees Hospitals NHS Foundation Trust",2,13540,0.1]
[null,"Y63","North East and Yorkshire Commissioning Region","R0B","South Tyneside And Sunderland NHS Foundation Trust",0,13965,0]
[null,"Y63","North East and Yorkshire Commissioning Region","RTD","The Newcastle Upon Tyne Hospitals NHS Foundation Trust",0,22835,0]
[null,"Y63","North East and Yorkshire Commissioning Region","RFR","The Rotherham NHS Foundation Trust",1,7195,0.1]
[null,"Y63","North East and Yorkshire Commissioning Region","RCB","York And Scarborough Teaching Hospitals NHS Foundation Trust",15,17215,0.9]
[]
[]
[null,"Care Trust, Community Trust and Mental Health Provider Level Data"]
[null,"Region Code","Region Name","Organisation Code","Organisation Name","MSA Breaches","Finished Consultant Episodes¹‚²\n(from May-21)","Breach Rate2,3"]
[null,null,null,"-","All Care Trusts, Community Trusts and Mental Health Providers",17,22200,0.76576576576576572]
[]
[null,"Y56","London Commissioning Region","RRP","Barnet, Enfield And Haringey Mental Health NHS Trust",0,"-","N/A"]
[null,"Y56","London Commissioning Region","TAF","Camden And Islington NHS Foundation Trust",0,"-","N/A"]
[null,"Y56","London Commissioning Region","RV3","Central And North West London NHS Foundation Trust",0,360,0]
[null,"Y56","London Commissioning Region","RYX","Central London Community Healthcare NHS Trust",0,"-","N/A"]
[null,"Y56","London Commissioning Region","RWK","East London NHS Foundation Trust",0,745,0]
[null,"Y56","London Commissioning Region","RY9","Hounslow And Richmond Community Healthcare NHS Trust",0,25,0]
[null,"Y56","London Commissioning Region","RAT","North East London NHS Foundation Trust",0,740,0]
[null,"Y56","London Commissioning Region","RPG","Oxleas NHS Foundation Trust",0,140,0]
[null,"Y56","London Commissioning Region","RV5","South London And Maudsley NHS Foundation Trust",2,"-","N/A"]
[null,"Y56","London Commissioning Region","RQY","South West London And St George's Mental Health NHS Trust",0,245,0]
[null,"Y56","London Commissioning Region","RKL","West London NHS Trust",11,"-","N/A"]
[null,"Y58","South West Commissioning Region","RVN","Avon And Wiltshire Mental Health Partnership NHS Trust",0,205,0]
[null,"Y58","South West Commissioning Region","RJ8","Cornwall Partnership NHS Foundation Trust",0,565,0]
[null,"Y58","South West Commissioning Region","RWV","Devon Partnership NHS Trust",0,"-","N/A"]
[null,"Y58","South West Commissioning Region","RDY","Dorset Healthcare University NHS Foundation Trust",0,375,0]
[null,"Y58","South West Commissioning Region","RTQ","Gloucestershire Health And Care NHS Foundation Trust",0,250,0]
[null,"Y58","South West Commissioning Region","RH5","Somerset NHS Foundation Trust",0,9860,0]
[null,"Y59","South East Commissioning Region","RWX","Berkshire Healthcare NHS Foundation Trust",0,265,0]
[null,"Y59","South East Commissioning Region","RXY","Kent And Medway NHS And Social Care Partnership Trust",0,"-","N/A"]
[null,"Y59","South East Commissioning Region","RYY","Kent Community Health NHS Foundation Trust",0,220,0]
[null,"Y59","South East Commissioning Region","RNU","Oxford Health NHS Foundation Trust",0,265,0]
[null,"Y59","South East Commissioning Region","R1C","Solent NHS Trust",0,80,0]
[null,"Y59","South East Commissioning Region","RW1","Southern Health NHS Foundation Trust",0,810,0]
[null,"Y59","South East Commissioning Region","RXX","Surrey And Borders Partnership NHS Foundation Trust",0,150,0]
[null,"Y59","South East Commissioning Region","RDR","Sussex Community NHS Foundation Trust",0,405,0]
[null,"Y59","South East Commissioning Region","RX2","Sussex Partnership NHS Foundation Trust",0,245,0]
[null,"Y60","Midlands Commissioning Region","RXT","Birmingham And Solihull Mental Health NHS Foundation Trust",0,"-","N/A"]
[null,"Y60","Midlands Commissioning Region","RYW","Birmingham Community Healthcare NHS Foundation Trust",0,525,0]
[null,"Y60","Midlands Commissioning Region","TAJ","Black Country Healthcare NHS Foundation Trust",0,"-","N/A"]
[null,"Y60","Midlands Commissioning Region","RYG","Coventry And Warwickshire Partnership NHS Trust",0,"-","N/A"]
[null,"Y60","Midlands Commissioning Region","RY8","Derbyshire Community Health Services NHS Foundation Trust",0,235,0]
[null,"Y60","Midlands Commissioning Region","RXM","Derbyshire Healthcare NHS Foundation Trust",0,145,0]
[null,"Y60","Midlands Commissioning Region","R1A","Herefordshire And Worcestershire Health And Care NHS Trust",0,600,0]
[null,"Y60","Midlands Commissioning Region","RT5","Leicestershire Partnership NHS Trust",0,570,0]
[null,"Y60","Midlands Commissioning Region","RY5","Lincolnshire Community Health Services NHS Trust",0,70,0]
[null,"Y60","Midlands Commissioning Region","RP7","Lincolnshire Partnership NHS Foundation Trust",0,"-","N/A"]
[null,"Y60","Midlands Commissioning Region","RRE","Midlands Partnership NHS Foundation Trust",0,520,0]
[null,"Y60","Midlands Commissioning Region","RLY","North Staffordshire Combined Healthcare NHS Trust",0,200,0]
[null,"Y60","Midlands Commissioning Region","RP1","Northamptonshire Healthcare NHS Foundation Trust",0,45,0]
[null,"Y60","Midlands Commissioning Region","RHA","Nottinghamshire Healthcare NHS Foundation Trust",0,395,0]
[null,"Y60","Midlands Commissioning Region","R1D","Shropshire Community Health NHS Trust",0,200,0]
[null,"Y61","East of England Commissioning Region","RT1","Cambridgeshire And Peterborough NHS Foundation Trust",0,"-","N/A"]
[null,"Y61","East of England Commissioning Region","R1L","Essex Partnership University NHS Foundation Trust",0,285,0]
[null,"Y61","East of England Commissioning Region","RY4","Hertfordshire Community NHS Trust",0,65,0]
[null,"Y61","East of England Commissioning Region","RWR","Hertfordshire Partnership University NHS Foundation Trust",0,185,0]
[null,"Y61","East of England Commissioning Region","RMY","Norfolk And Suffolk NHS Foundation Trust",0,"-","N/A"]
[null,"Y61","East of England Commissioning Region","RY3","Norfolk Community Health And Care NHS Trust",0,240,0]
[null,"Y62","North West Commissioning Region","RXA","Cheshire And Wirral Partnership NHS Foundation Trust",0,185,0]
[null,"Y62","North West Commissioning Region","RXV","Greater Manchester Mental Health NHS Foundation Trust",0,170,0]
[null,"Y62","North West Commissioning Region","RW5","Lancashire & South Cumbria NHS Foundation Trust",0,225,0]
[null,"Y62","North West Commissioning Region","RW4","Mersey Care NHS Foundation Trust",0,"-","N/A"]
[null,"Y62","North West Commissioning Region","RT2","Pennine Care NHS Foundation Trust",4,"-","N/A"]
[null,"Y63","North East and Yorkshire Commissioning Region","TAD","Bradford District Care NHS Foundation Trust",0,70,0]
[null,"Y63","North East and Yorkshire Commissioning Region","RX4","Cumbria, Northumberland, Tyne And Wear NHS Foundation Trust",0,400,0]
[null,"Y63","North East and Yorkshire Commissioning Region","RV9","Humber Teaching NHS Foundation Trust",0,175,0]
[null,"Y63","North East and Yorkshire Commissioning Region","RGD","Leeds And York Partnership NHS Foundation Trust",0,"-","N/A"]
[null,"Y63","North East and Yorkshire Commissioning Region","RY6","Leeds Community Healthcare NHS Trust",0,"-","N/A"]
[null,"Y63","North East and Yorkshire Commissioning Region","RXE","Rotherham Doncaster And South Humber NHS Foundation Trust",0,280,0]
[null,"Y63","North East and Yorkshire Commissioning Region","TAH","Sheffield Health & Social Care NHS Foundation Trust",0,"-","N/A"]
[null,"Y63","North East and Yorkshire Commissioning Region","RXG","South West Yorkshire Partnership NHS Foundation Trust",0,180,0]
[null,"Y63","North East and Yorkshire Commissioning Region","RX3","Tees, Esk And Wear Valleys NHS Foundation Trust",0,"-","N/A"]
[]
[null,"Independent Sector Level Data"]
[null,"Region Code","Region Name","Organisation Code","Organisation Name","MSA Breaches","Finished Consultant Episodes¹‚²\n(from May-21)","Breach Rate2,3"]
[null,null,null,"-","All Independent Providers",0,24070,0]
[]
[null,"Y56","London Commissioning Region","NV3","Circle",0,710,0]
[null,"Y56","London Commissioning Region","NT3","Spire Healthcare",0,4895,0]
[null,"Y58","South West Commissioning Region","NR5","Livewell Southwest",0,205,0]
[null,"Y58","South West Commissioning Region","NLX","Sirona Care & Health",0,"-","N/A"]
[null,"Y58","South West Commissioning Region","AXG","Wiltshire Health & Care",0,60,0]
[null,"Y59","South East Commissioning Region","NTV","CSH Surrey",0,60,0]
[null,"Y59","South East Commissioning Region","NVM","Epsomedical Group",0,435,0]
[null,"Y59","South East Commissioning Region","ADP","Kims Hospital",0,180,0]
[null,"Y59","South East Commissioning Region","NT2","Nuffield Health",0,1395,0]
[null,"Y59","South East Commissioning Region","NTP","Practice Plus Group",0,4995,0]
[null,"Y61","East of England Commissioning Region","NQA","Provide",0,20,0]
[null,"Y61","East of England Commissioning Region","NVC","Ramsay Healthcare UK Operations Limited",0,10860,0]
[null,"Y62","North West Commissioning Region","NQT","Hcrg Care Ltd",0,35,0]
[null,"Y62","North West Commissioning Region","NDA","Hcrg Care Services Ltd",0,50,0]
[null,"Y62","North West Commissioning Region","NVG","Fairfield Hospital",0,170,0]
[null,"Y63","North East and Yorkshire Commissioning Region","NL3","Care Plus Group",0,"-","N/A"]
[null,"Y63","North East and Yorkshire Commissioning Region","NL8","Locala Community Partnerships CIC",0,"-","N/A"]
[null,"Y63","North East and Yorkshire Commissioning Region","NQL","Navigo Health And Social Care CIC",0,"-","N/A"]
[]
[null,"Notes:"]
[null,"1. Finished Consultant Episode (FCE) data from Hospital Episode Statistics (HES) are used to calculate the MSA breach rate (for further details on methodology of this calculation see footnote 2). The FCE data presented are a snapshot of latest HES data available at the time of the MSA publication for the relevant data period (due to timings of HES publication in some months this will represent \"final\" HES data, however for some months this is \"provisional\" HES data). These are used solely for the purposes of calculating an MSA breach rate to allow comparisons across providers and of change over time.\n\nFrom 2017/18 onwards, where revisions are published, the FCE denominator is updated to reflect final HES data where available so is subject to change. The FCE data may not match the published HES timeseries (where provisional data is updated on a monthly basis).  The official and most recent timeseries of HES data is available on the NHS Digital website which will reflect any more recent updates to the provisional HES FCE data. https://digital.nhs.uk/data-and-information/publications/statistical/hospital-episode-statistics-for-admitted-patient-care-outpatient-and-accident-and-emergency-data\n\nRegional level FCE data is displayed accordance with HES disclosure control methodology. \nhttps://digital.nhs.uk/binaries/content/assets/website-assets/data-and-information/data-tools-and-services/data-services/hospital-episode-statistics/hes_analysis_guide_september_2018-v1.1.pdf"]
[null,"HES Disclosure Control\nIn order to protect patient confidentiality '*' appears in the table above for all sub-national breakdowns, where it is possible to calculate a value between 1 and 7 from the data presented. All other sub-national data has been rounded to the nearest 5.\n\nIf the national total is between 1 and 7 (inclusive), no sub-national breakdown will be displayed. \n\nIf the national total is greater than or equal to 8;\na. Sub-national counts between 1 and 7 (inclusive) will be displayed as ’*’.\nb. Zeroes will be unchanged.\nc. All other counts will be rounded to the nearest 5."]
[]
[null,"2. The MSA breach rate is the number of MSA breaches, per 1,000 finished consultant episodes. Due to timeliness of HES data, there is a one year lag in the denominator data, compared to the MSA breaches. For example, the breach rate for April 2022 is calculated by dividing the total MSA breaches in April 2022 (numerator) by the number of Finished Consultant Episodes in April 2021 (denominator). As such, it is only an estimation. Please see Breach Rate methodology paper for further information via: http://www.england.nhs.uk/statistics/mixed-sex-accommodation/\n\nWhen calculating rates or percentages at regional level using HES data;\n   1) Where the numerator or denominator is between 1 and 7 (inclusive), no percentage or rate is calculated, and a ’*’ will be displayed.\n   2) Where the numerator is zero, the percentage will be 0%.\n   3) Where the unrounded numerator and denominator are greater than or equal to 8, a percentage or rate is calculated using the rounded numerator or denominator.\n   4).Where no denominator data is available, no percentage or rate is calculated, and ’N/A’ will be displayed."]
[null,"3. The Breach Rate for some organisations - particularly Care Trusts, Community Trusts or Mental Health Providers - may be artificially high due to their reporting of episodes of care. Activity for these organisations may be led by multi-disciplinary teams, which would not necessarily be captured as Finished Consultant Episodes and would therefore potentially be excluded from the denominator, leading to an inflated breach rate estimate."]

{"sheet":"Commissioner","index":4,"n_rows":131,"n_cols":8,"rows_kept":131,"cut":false,"hidden":false,"merged":[[133,1,133,7],[130,1,130,7],[126,1,126,7],[127,1,127,7],[129,1,129,7]]}
[]
[null,"Title:","Mixed-Sex Accommodation"]
[null,"Summary:","The total occurrences of unjustified mixing in relation to sleeping accommodation."]
[]
[null,"Period:",{"$f":"Publicationmonth","v":"May 2022"}]
[null,"Sources:",{"$f":"'National & Regional Team'!C6","v":"MSA, collected via SDCS, NHS England and NHS Improvement (MSA breaches)"}]
[null,null,{"$f":"'National & Regional Team'!C7","v":"Hospital Episode Statistics (HES), NHS Digital (FCE data)"}]
[null,"Basis:","Commissioner"]
[null,"Published:",{"$f":"Publicationdate","v":"14th July 2022"}]
[null,"Revised:","-"]
[null,"Status:","Published"]
[null,"Contact:","Katie Tither - england.nhsdata@nhs.net"]
[]
[null,"Commissioner Level Data"]
[null,"Region Code","Region Name","Organisation Code","Organisation Name","MSA Breaches",{"$f":"'National & Regional Team'!E15","v":"Finished Consultant Episodes¹‚²\n(from May-21)"},"Breach Rate2,3"]
[null,"-","-","-","England",2344,1655367,1.4]
[]
[null,"X24","NHS England","X24","NHS England",5,"-","N/A"]
[null,"Y56","London Commissioning Region","93C","NHS North Central London CCG",34,35955,0.9]
[null,"Y56","London Commissioning Region","A3A8R","NHS North East London CCG",194,47590,4.0999999999999996]
[null,"Y56","London Commissioning Region","W2U3Z","NHS North West London CCG",174,59240,2.9]
[null,"Y56","London Commissioning Region","72Q","NHS South East London CCG",40,48740,0.8]
[null,"Y56","London Commissioning Region","36L","NHS South West London CCG",37,37755,1]
[null,"Y58","South West Commissioning Region","92G","NHS Bath And North East Somerset, Swindon And Wiltshire CCG",89,24480,3.6]
[null,"Y58","South West Commissioning Region","15C","NHS Bristol, North Somerset And South Gloucestershire CCG",0,27745,0]
[null,"Y58","South West Commissioning Region","15N","NHS Devon CCG",1,38990,0]
[null,"Y58","South West Commissioning Region","11J","NHS Dorset CCG",154,24090,6.4]
[null,"Y58","South West Commissioning Region","11M","NHS Gloucestershire CCG",19,18660,1]
[null,"Y58","South West Commissioning Region","11N","NHS Kernow CCG",1,19195,0.1]
[null,"Y58","South West Commissioning Region","11X","NHS Somerset CCG",3,17130,0.2]
[null,"Y59","South East Commissioning Region","15A","NHS Berkshire West CCG",53,14035,3.8]
[null,"Y59","South East Commissioning Region","09D","NHS Brighton And Hove CCG",70,7125,9.8000000000000007]
[null,"Y59","South East Commissioning Region","14Y","NHS Buckinghamshire CCG",11,13965,0.8]
[null,"Y59","South East Commissioning Region","97R","NHS East Sussex CCG",72,17170,4.2]
[null,"Y59","South East Commissioning Region","D4U1Y","NHS Frimley CCG",24,17655,1.4]
[null,"Y59","South East Commissioning Region","D9Y0V","NHS Hampshire, Southampton And Isle Of Wight CCG",68,47715,1.4]
[null,"Y59","South East Commissioning Region","91Q","NHS Kent And Medway CCG",178,50595,3.5]
[null,"Y59","South East Commissioning Region","10Q","NHS Oxfordshire CCG",25,17175,1.5]
[null,"Y59","South East Commissioning Region","10R","NHS Portsmouth CCG",1,6085,0.2]
[null,"Y59","South East Commissioning Region","92A","NHS Surrey Heartlands CCG",43,28760,1.5]
[null,"Y59","South East Commissioning Region","70F","NHS West Sussex CCG",114,28005,4.0999999999999996]
[null,"Y60","Midlands Commissioning Region","15E","NHS Birmingham And Solihull CCG",3,36085,0.1]
[null,"Y60","Midlands Commissioning Region","D2P2L","NHS Black Country And West Birmingham CCG",42,37585,1.1000000000000001]
[null,"Y60","Midlands Commissioning Region","04Y","NHS Cannock Chase CCG",0,4505,0]
[null,"Y60","Midlands Commissioning Region","B2M3M","NHS Coventry And Warwickshire CCG",0,29450,0]
[null,"Y60","Midlands Commissioning Region","15M","NHS Derby And Derbyshire CCG",5,31905,0.2]
[null,"Y60","Midlands Commissioning Region","03W","NHS East Leicestershire And Rutland CCG",2,9320,0.2]
[null,"Y60","Midlands Commissioning Region","05D","NHS East Staffordshire CCG",1,4620,0.2]
[null,"Y60","Midlands Commissioning Region","18C","NHS Herefordshire And Worcestershire CCG",94,22720,4.0999999999999996]
[null,"Y60","Midlands Commissioning Region","04C","NHS Leicester City CCG",1,9530,0.1]
[null,"Y60","Midlands Commissioning Region","71E","NHS Lincolnshire CCG",42,20020,2.1]
[null,"Y60","Midlands Commissioning Region","05G","NHS North Staffordshire CCG",1,7285,0.1]
[null,"Y60","Midlands Commissioning Region","78H","NHS Northamptonshire CCG",6,22620,0.3]
[null,"Y60","Midlands Commissioning Region","52R","NHS Nottingham And Nottinghamshire CCG",14,33495,0.4]
[null,"Y60","Midlands Commissioning Region","M2L0M","NHS Shropshire, Telford And Wrekin CCG",51,14530,3.5]
[null,"Y60","Midlands Commissioning Region","05Q","NHS South East Staffordshire And Seisdon Peninsula CCG",3,6230,0.5]
[null,"Y60","Midlands Commissioning Region","05V","NHS Stafford And Surrounds CCG",0,5325,0]
[null,"Y60","Midlands Commissioning Region","05W","NHS Stoke On Trent CCG",0,10195,0]
[null,"Y60","Midlands Commissioning Region","04V","NHS West Leicestershire CCG",1,10895,0.1]
[null,"Y61","East of England Commissioning Region","99E","NHS Basildon And Brentwood CCG",9,8610,1]
[null,"Y61","East of England Commissioning Region","M1J4Y","NHS Bedfordshire, Luton And Milton Keynes CCG",12,29055,0.4]
[null,"Y61","East of England Commissioning Region","06H","NHS Cambridgeshire And Peterborough CCG",19,24715,0.8]
[null,"Y61","East of England Commissioning Region","99F","NHS Castle Point And Rochford CCG",0,5520,0]
[null,"Y61","East of England Commissioning Region","06K","NHS East And North Hertfordshire CCG",5,15535,0.3]
[null,"Y61","East of England Commissioning Region","06N","NHS Herts Valleys CCG",11,17025,0.6]
[null,"Y61","East of England Commissioning Region","06L","NHS Ipswich And East Suffolk CCG",34,11830,2.9]
[null,"Y61","East of England Commissioning Region","06Q","NHS Mid Essex CCG",2,9470,0.2]
[null,"Y61","East of England Commissioning Region","26A","NHS Norfolk And Waveney CCG",14,32525,0.4]
[null,"Y61","East of England Commissioning Region","06T","NHS North East Essex CCG",7,10140,0.7]
[null,"Y61","East of England Commissioning Region","99G","NHS Southend CCG",3,5520,0.5]
[null,"Y61","East of England Commissioning Region","07G","NHS Thurrock CCG",3,5320,0.6]
[null,"Y61","East of England Commissioning Region","07H","NHS West Essex CCG",4,8580,0.5]
[null,"Y61","East of England Commissioning Region","07K","NHS West Suffolk CCG",4,8095,0.5]
[null,"Y62","North West Commissioning Region","00Q","NHS Blackburn With Darwen CCG",1,5180,0.2]
[null,"Y62","North West Commissioning Region","00R","NHS Blackpool CCG",2,6680,0.3]
[null,"Y62","North West Commissioning Region","00T","NHS Bolton CCG",13,7590,1.7]
[null,"Y62","North West Commissioning Region","00V","NHS Bury CCG",18,5460,3.3]
[null,"Y62","North West Commissioning Region","27D","NHS Cheshire CCG",73,23880,3.1]
[null,"Y62","North West Commissioning Region","00X","NHS Chorley And South Ribble CCG",5,5625,0.9]
[null,"Y62","North West Commissioning Region","01A","NHS East Lancashire CCG",3,11400,0.3]
[null,"Y62","North West Commissioning Region","02M","NHS Fylde And Wyre CCG",4,6610,0.6]
[null,"Y62","North West Commissioning Region","01E","NHS Greater Preston CCG",10,6120,1.6]
[null,"Y62","North West Commissioning Region","01F","NHS Halton CCG",1,4700,0.2]
[null,"Y62","North West Commissioning Region","01D","NHS Heywood, Middleton And Rochdale CCG",12,6595,1.8]
[null,"Y62","North West Commissioning Region","01J","NHS Knowsley CCG",0,6540,0]
[null,"Y62","North West Commissioning Region","99A","NHS Liverpool CCG",0,17430,0]
[null,"Y62","North West Commissioning Region","14L","NHS Manchester CCG",16,16095,1]
[null,"Y62","North West Commissioning Region","01K","NHS Morecambe Bay CCG",3,9955,0.3]
[null,"Y62","North West Commissioning Region","00Y","NHS Oldham CCG",40,6620,6]
[null,"Y62","North West Commissioning Region","01G","NHS Salford CCG",4,8655,0.5]
[null,"Y62","North West Commissioning Region","01T","NHS South Sefton CCG",1,5215,0.2]
[null,"Y62","North West Commissioning Region","01V","NHS Southport And Formby CCG",2,4335,0.5]
[null,"Y62","North West Commissioning Region","01X","NHS St Helens CCG",2,7435,0.3]
[null,"Y62","North West Commissioning Region","01W","NHS Stockport CCG",6,9445,0.6]
[null,"Y62","North West Commissioning Region","01Y","NHS Tameside And Glossop CCG",4,7280,0.5]
[null,"Y62","North West Commissioning Region","02A","NHS Trafford CCG",0,6355,0]
[null,"Y62","North West Commissioning Region","02E","NHS Warrington CCG",2,5720,0.3]
[null,"Y62","North West Commissioning Region","02G","NHS West Lancashire CCG",3,3625,0.8]
[null,"Y62","North West Commissioning Region","02H","NHS Wigan Borough CCG",2,9865,0.2]
[null,"Y62","North West Commissioning Region","12F","NHS Wirral CCG",1,12895,0.1]
[null,"Y63","North East and Yorkshire Commissioning Region","02P","NHS Barnsley CCG",1,8750,0.1]
[null,"Y63","North East and Yorkshire Commissioning Region","02Q","NHS Bassetlaw CCG",3,3275,0.9]
[null,"Y63","North East and Yorkshire Commissioning Region","36J","NHS Bradford District And Craven CCG",1,19145,0.1]
[null,"Y63","North East and Yorkshire Commissioning Region","02T","NHS Calderdale CCG",0,5630,0]
[null,"Y63","North East and Yorkshire Commissioning Region","84H","NHS County Durham CCG",6,16110,0.4]
[null,"Y63","North East and Yorkshire Commissioning Region","02X","NHS Doncaster CCG",1,9395,0.1]
[null,"Y63","North East and Yorkshire Commissioning Region","02Y","NHS East Riding Of Yorkshire CCG",2,9025,0.2]
[null,"Y63","North East and Yorkshire Commissioning Region","03F","NHS Hull CCG",0,7450,0]
[null,"Y63","North East and Yorkshire Commissioning Region","X2C4Y","NHS Kirklees CCG",1,11130,0.1]
[null,"Y63","North East and Yorkshire Commissioning Region","15F","NHS Leeds CCG",267,16155,16.5]
[null,"Y63","North East and Yorkshire Commissioning Region","13T","NHS Newcastle Gateshead CCG",0,17500,0]
[null,"Y63","North East and Yorkshire Commissioning Region","01H","NHS North Cumbria CCG",13,9080,1.4]
[null,"Y63","North East and Yorkshire Commissioning Region","03H","NHS North East Lincolnshire CCG",0,4795,0]
[null,"Y63","North East and Yorkshire Commissioning Region","03K","NHS North Lincolnshire CCG",0,5230,0]
[null,"Y63","North East and Yorkshire Commissioning Region","99C","NHS North Tyneside CCG",1,8265,0.1]
[null,"Y63","North East and Yorkshire Commissioning Region","42D","NHS North Yorkshire CCG",5,13615,0.4]
[null,"Y63","North East and Yorkshire Commissioning Region","00L","NHS Northumberland CCG",0,12965,0]
[null,"Y63","North East and Yorkshire Commissioning Region","03L","NHS Rotherham CCG",0,8760,0]
[null,"Y63","North East and Yorkshire Commissioning Region","03N","NHS Sheffield CCG",0,18115,0]
[null,"Y63","North East and Yorkshire Commissioning Region","00N","NHS South Tyneside CCG",0,5200,0]
[null,"Y63","North East and Yorkshire Commissioning Region","00P","NHS Sunderland CCG",0,9015,0]
[null,"Y63","North East and Yorkshire Commissioning Region","16C","NHS Tees Valley CCG",2,22205,0.1]
[null,"Y63","North East and Yorkshire Commissioning Region","03Q","NHS Vale Of York CCG",10,10825,0.9]
[null,"Y63","North East and Yorkshire Commissioning Region","03R","NHS Wakefield CCG",0,10305,0]
[]
[null,"Notes:"]
[null,"1. Finished Consultant Episode (FCE) data from Hospital Episode Statistics (HES) are used to calculate the MSA breach rate (for further details on methodology of this calculation see footnote 2). The FCE data presented are a snapshot of latest HES data available at the time of the MSA publication for the relevant data period (due to timings of HES publication in some months this will represent \"final\" HES data, however for some months this is \"provisional\" HES data). These are used solely for the purposes of calculating an MSA breach rate to allow comparisons across providers and of change over time.\n\nFrom 2017/18 onwards, where revisions are published, the FCE denominator is updated to reflect final HES data where available so is subject to change. The FCE data may not match the published HES timeseries (where provisional data is updated on a monthly basis).  The official and most recent timeseries of HES data is available on the NHS Digital website which will reflect any more recent updates to the provisional HES FCE data. https://digital.nhs.uk/data-and-information/publications/statistical/hospital-episode-statistics-for-admitted-patient-care-outpatient-and-accident-and-emergency-data\n\nRegional level FCE data is displayed accordance with HES disclosure control methodology. \nhttps://digital.nhs.uk/binaries/content/assets/website-assets/data-and-information/data-tools-and-services/data-services/hospital-episode-statistics/hes_analysis_guide_september_2018-v1.1.pdf"]
[null,"HES Disclosure Control\nIn order to protect patient confidentiality '*' appears in the table above for all sub-national breakdowns, where it is possible to calculate a value between 1 and 7 from the data presented. All other sub-national data has been rounded to the nearest 5.\n\nIf the national total is between 1 and 7 (inclusive), no sub-national breakdown will be displayed. \n\nIf the national total is greater than or equal to 8;\na. Sub-national counts between 1 and 7 (inclusive) will be displayed as ’*’.\nb. Zeroes will be unchanged.\nc. All other counts will be rounded to the nearest 5."]
[]
[null,"2. The MSA breach rate is the number of MSA breaches, per 1,000 finished consultant episodes. Due to timeliness of HES data, there is a one year lag in the denominator data, compared to the MSA breaches. For example, the breach rate for April 2022 is calculated by dividing the total MSA breaches in April 2022 (numerator) by the number of Finished Consultant Episodes in April 2021 (denominator). As such, it is only an estimation. Please see Breach Rate methodology paper for further information via: http://www.england.nhs.uk/statistics/mixed-sex-accommodation/\n\nWhen calculating rates or percentages at regional level using HES data;\n   1) Where the numerator or denominator is between 1 and 7 (inclusive), no percentage or rate is calculated, and a ’*’ will be displayed.\n   2) Where the numerator is zero, the percentage will be 0%.\n   3) Where the unrounded numerator and denominator are greater than or equal to 8, a percentage or rate is calculated using the rounded numerator or denominator.\n   4).Where no denominator data is available, no percentage or rate is calculated, and ’N/A’ will be displayed."]
[null,"3. The Breach Rate for some organisations - particularly Care Trusts, Community Trusts or Mental Health Providers - may be artificially high due to their reporting of episodes of care. Activity for these organisations may be led by multi-disciplinary teams, which would not necessarily be captured as Finished Consultant Episodes and would therefore potentially be excluded from the denominator, leading to an inflated breach rate estimate."]

{"sheet":"Notes","index":5,"n_rows":15,"n_cols":3,"rows_kept":15,"cut":false,"hidden":false,"merged":[]}
[]
[null,"Title:","Mixed-Sex Accommodation"]
[null,"Summary:","The total occurrences of unjustified mixing in relation to sleeping accommodation."]
[]
[null,"Period:",{"$f":"Publicationmonth","v":"May 2022"}]
[null,"Sources:",{"$f":"'National & Regional Team'!C6","v":"MSA, collected via SDCS, NHS England and NHS Improvement (MSA breaches)"}]
[null,null,{"$f":"'National & Regional Team'!C7","v":"Hospital Episode Statistics (HES), NHS Digital (FCE data)"}]
[null,"Basis:","Commissioner"]
[null,"Published:",{"$f":"Publicationdate","v":"14th July 2022"}]
[null,"Revised:","-"]
[null,"Status:","Published"]
[null,"Contact:","Katie Tither - england.nhsdata@nhs.net"]
[]
[]
[null,"Notes"]